Workbook

Sheet Data summary
A1: RUN # 2 | B1: Rate classes | C1: Weather station used for normalization | H1: Test Year
A2: 1 | B2: Residential class | C2: Ottawa | H2: 2004
A3: 2 | B3: Street lighting
A4: 3 | B4: Sentinel lighting
A5: 4 | B5: General service <50kW
A6: 5 | B6: General service 50 to 1000kW
A7: 6 | B7: General service 1000 to 5000kW
A8: 7 | B8: USL
A9: 8 | B9: Large customers
A12: Monthly kWh by class (with actual weather) | C12: Jan | D12: Feb | E12: Mar | F12: Apr | G12: May | H12: Jun | I12: Jul | J12: Aug | K12: Sep | L12: Oct | M12: Nov | N12: Dec | O12: TOTAL
A13: 1 | B13: Residential class | C13: 6337769.358 | D13: 5256968.72 | E13: 5016213.394 | F13: 4247773.3 | G13: 3835186.439 | H13: 3903172.608 | I13: 3687628.623 | J13: 4032742.508 | K13: 3758485.125 | L13: 3923278.88 | M13: 4681017.956 | N13: 5476340.236 | O13: 54156577.15
A14: 2 | B14: Street lighting | C14: 115655.626 | D14: 96880.782 | E14: 89576.756 | F14: 71164.36 | G14: 61617.374 | H14: 56499.004 | I14: 63933.5 | J14: 66460.31 | K14: 74149.44 | L14: 90286.598 | M14: 100417.004 | N14: 121705.85 | O14: 1008346.604
A15: 3 | B15: Sentinel lighting | C15: 8061.15694 | D15: 7714.492987 | E15: 8518.687063 | F15: 8364.57 | G15: 7818.214698 | H15: 7860.967117 | I15: 8498.702561 | J15: 7938.138605 | K15: 7825.963998 | L15: 7970.834153 | M15: 8419.928974 | N15: 9608.46694 | O15: 98600.12404
A16: 4 | B16: General service <50kW | C16: 2675312.042 | D16: 2219082.287 | E16: 2117454.161 | F16: 1792329.536 | G16: 1618916.67 | H16: 1647615.129 | I16: 1556629.266 | J16: 1702309.438 | K16: 1586539.356 | L16: 1656102.43 | M16: 1975960.784 | N16: 2311683.836 | O16: 22859934.94
A17: 5 | B17: General service 50 to 1000kW | C17: 7527299.737 | D17: 6457484.053 | E17: 6244301.097 | F17: 5560084.284 | G17: 5305091.256 | H17: 5254431.812 | I17: 5649925.905 | J17: 5452498.61 | K17: 5199681.141 | L17: 5506791.874 | M17: 5841045.413 | N17: 6709365.244 | O17: 70708000.43
A18: 6 | B18: General service 1000 to 5000kW | C18: 1420498.417 | D18: 1439574.932 | E18: 1439404.124 | F18: 1348216.093 | G18: 1308461.518 | H18: 1297924.255 | I18: 1097263.204 | J18: 1358301.084 | K18: 1397931.236 | L18: 1508881.602 | M18: 1623462.517 | N18: 1384201.049 | O18: 16624120.03
A19: 7 | B19: USL | C19: 330 | D19: 330 | E19: 330 | F19: 330 | G19: 330 | H19: 330 | I19: 330 | J19: 330 | K19: 330 | L19: 330 | M19: 330 | N19: 330 | O19: 3960
A20: 8 | B20: Large customers | C20: 4552687.66 | D20: 4108281.737 | E20: 4380565.782 | F20: 3878256.853 | G20: 3884447.532 | H20: 4052946.226 | I20: 2283983.797 | J20: 4134235.916 | K20: 3805186.734 | L20: 3542182.786 | M20: 4146688.394 | N20: 2915341.314 | O20: 45684804.73
A23: Monthly kWh by class (with normalized weather) | C23: Jan | D23: Feb | E23: Mar | F23: Apr | G23: May | H23: Jun | I23: Jul | J23: Aug | K23: Sep | L23: Oct | M23: Nov | N23: Dec | O23: TOTAL
A24: 1 | B24: Residential class | C24: 5833590.437 | D24: 5296826.885 | E24: 5261675.206 | F24: 4201168.928 | G24: 3884182.999 | H24: 3984084.423 | I24: 3722000.355 | J24: 4085423.104 | K24: 3851090.588 | L24: 4011977.6 | M24: 4758891.973 | N24: 5236721.913 | O24: 54127634.41
A25: 2 | B25: Street lighting | C25: 115655.626 | D25: 96880.782 | E25: 89576.756 | F25: 71164.36 | G25: 61617.374 | H25: 56499.004 | I25: 63933.5 | J25: 66460.31 | K25: 74149.44 | L25: 90286.598 | M25: 100417.004 | N25: 121705.85 | O25: 1008346.604
A26: 3 | B26: Sentinel lighting | C26: 8061.15694 | D26: 7714.492987 | E26: 8518.687063 | F26: 8364.57 | G26: 7818.214698 | H26: 7860.967117 | I26: 8498.702561 | J26: 7938.138605 | K26: 7825.963998 | L26: 7970.834153 | M26: 8419.928974 | N26: 9608.46694 | O26: 98600.12404
A27: 4 | B27: General service <50kW | C27: 2462527.847 | D27: 2235904.065 | E27: 2221049.12 | F27: 1772660.582 | G27: 1639596.212 | H27: 1681769.787 | I27: 1571138.333 | J27: 1724547.074 | K27: 1625627.488 | L27: 1693536.927 | M27: 2008826.819 | N27: 2210555.073 | O27: 22847739.33
A28: 5 | B28: General service 50 to 1000kW | C28: 7202159.168 | D28: 6483188.234 | E28: 6402597.269 | F28: 5530029.533 | G28: 5344128.43 | H28: 5356037.097 | I28: 5693088.324 | J28: 5518652.446 | K28: 5295774.67 | L28: 5563992.902 | M28: 5891265.684 | N28: 6554837.486 | O28: 70835751.24
A29: 6 | B29: General service 1000 to 5000kW | C29: 1420498.417 | D29: 1439574.932 | E29: 1439404.124 | F29: 1348216.093 | G29: 1308461.518 | H29: 1297924.255 | I29: 1097263.204 | J29: 1358301.084 | K29: 1397931.236 | L29: 1508881.602 | M29: 1623462.517 | N29: 1384201.049 | O29: 16624120.03
A30: 7 | B30: USL | C30: 330 | D30: 330 | E30: 330 | F30: 330 | G30: 330 | H30: 330 | I30: 330 | J30: 330 | K30: 330 | L30: 330 | M30: 330 | N30: 330 | O30: 3960
A31: 8 | B31: Large customers | C31: 4552687.66 | D31: 4108281.737 | E31: 4380565.782 | F31: 3878256.853 | G31: 3884447.532 | H31: 4052946.226 | I31: 2283983.797 | J31: 4134235.916 | K31: 3805186.734 | L31: 3542182.786 | M31: 4146688.394 | N31: 2915341.314 | O31: 45684804.73
A34: Residential class information | C34: Equipment saturation
B35: Electric space heating | C35: 0.3103957736
B36: Electric water heating | C36: 0.3424068768
B37: Air conditioning | C37: 0.3596419269
B38: Baseload | C38: 1
A41: General service 50 to 1000kW | C41: 2004 kWh (Actual) | D41: 2004 kWh (Weather Corrected)
B42: Weather sensitive load | C42: 33988894.16 | D42: 34116644.98
B43: Non-weather sensitive load | C43: 36719106.26 | D43: 36719106.26
B44: TOTAL | C44: 70708000.43 | D44: 70835751.24
A47: General service 1000 to 5000kW | C47: 2004 kWh (Actual) | D47: 2004 kWh (Weather Corrected)
B48: Weather sensitive load | C48: 0 | D48: 0
B49: Non-weather sensitive load | C49: 16624120.03 | D49: 16624120.03
B50: TOTAL | C50: 16624120.03 | D50: 16624120.03
A53: Large customers | C53: 2004 kWh (Actual) | D53: 2004 kWh (Weather Corrected)
B54: Weather sensitive load | C54: 0 | D54: 0
B55: Non-weather sensitive load | C55: 45684804.73 | D55: 45684804.73
B56: TOTAL | C56: 45684804.73 | D56: 45684804.73

Sheet Hourly load shapes by class
A1: ALL UNITS IN GWh | M1: 2015 Load Shape
A2: Year | B2: Month | C2: Day | D2: Hour (EST) | E2: Residential | F2: GS 50 to 5000kW | G2: Street Lighting | H2: GS<50kW | I2: USL | J2: Sentinel Lighting | K2: TOTAL LDC sales | M2: =E2 -> Residential | N2: =F2 -> GS 50 to 5000kW | O2: Street Lighting | P2: GS<50kW | Q2: USL | R2: Sentinel Lighting | S2: =K2 -> TOTAL LDC sales | V2: =E2 -> Residential | W2: =F2 -> GS 50 to 5000kW | X2: Street Lighting | Y2: GS<50kW | Z2: USL | AA2: Sentinel Lighting | AB2: =K2 -> TOTAL LDC sales
A3: 2004 | B3: 1 | C3: 1 | D3: 1 | E3: 0.006797146553 | F3: 0.007184969268 | G3: 0.0002532512521 | H3: 0.003414837806 | I3: 4.435483871e-07 | J3: 1.765152427e-05 | K3: =SUM(E3:J3) -> 0.01766829995 | M3: =E3*V$5 -> 0.006056361876 | N3: =F3*W$5 -> 0.006656045776 | O3: =G3*X$5 -> 0.0001623729338 | P3: =H3*Y$5 -> 0.002711744003 | Q3: =I3*Z$5 -> 4.808541697e-05 | R3: 1.504292729e-05 | S3: =SUM(M3:R3) -> 0.01564965293 | U3: 2004 | V3: =SUM(E3:E8786)*1000000 -> 54127634.41 | W3: =SUM(F3:F8786)*1000000 -> 87459871.28 | X3: =SUM(G3:G8786)*1000000 -> 1008346.604 | Y3: 22847739.33 | Z3: =SUM(I3:I8786)*1000000 -> 3960 | AA3: 98600.12404 | AB3: =SUM(V3:Y3) -> 165443591.6
A4: 2004 | B4: 1 | C4: 1 | D4: 2 | E4: 0.00645639795 | F4: 0.007029804647 | G4: 0.0002532512521 | H4: 0.00335770032 | I4: 4.435483871e-07 | J4: 1.765152427e-05 | K4: =SUM(E4:J4) -> 0.01711524924 | M4: =E4*V$5 -> 0.005752749642 | N4: =F4*W$5 -> 0.006512303641 | O4: =G4*X$5 -> 0.0001623729338 | P4: =H4*AB$5 -> 0.003004493649 | Q4: =I4*Z$5 -> 4.808541697e-05 | R4: =J4*AA$5 -> 1.504292729e-05 | S4: =SUM(M4:R4) -> 0.01549504821 | U4: 2018 Forecast | V4: 48228552.81 | W4: 81021488.76 | X4: 646504.9827 | Y4: 18143532.32 | Z4: 429306.6028 | AA4: 84028.69205 | AB4: =SUM(V4:Y4) -> 148040078.9
A5: 2004 | B5: 1 | C5: 1 | D5: 3 | E5: 0.006510529287 | F5: 0.006843664657 | G5: 0.0002532512521 | H5: 0.003277443854 | I5: 4.435483871e-07 | J5: 1.765152427e-05 | K5: 0.01690298412 | M5: 0.005800981495 | N5: 0.006339866398 | O5: 0.0001623729338 | P5: 0.002932679603 | Q5: 4.808541697e-05 | R5: 1.504292729e-05 | S5: 0.01529902877 | U5: Scaling Factor | V5: =V4/V3 -> 0.8910153444 | W5: =W4/W3 -> 0.9263847245 | X5: 0.6411535281 | Y5: 0.794106238 | Z5: 108.4107583 | AA5: 0.8522169001 | AB5: =AB4/AB3 -> 0.8948069697
A6: 2004 | B6: 1 | C6: 1 | D6: 4 | E6: 0.00654652287 | F6: 0.006731636416 | G6: 0.0002532512521 | H6: 0.003149607114 | I6: 4.435483871e-07 | J6: 1.765152427e-05 | K6: 0.01669911273 | M6: 0.00583305233 | N6: 0.006236085147 | O6: 0.0001623729338 | P6: 0.002818290398 | Q6: 4.808541697e-05 | R6: 1.504292729e-05 | S6: 0.01511292915
A7: 2004 | B7: 1 | C7: 1 | D7: 5 | E7: 0.006756101222 | F7: 0.006689743502 | G7: 0.0002532512521 | H7: 0.003104962741 | I7: 4.435483871e-07 | J7: 1.765152427e-05 | K7: 0.01682215379 | M7: 0.006019789856 | N7: 0.006197276191 | O7: 0.0001623729338 | P7: 0.002778342302 | Q7: 4.808541697e-05 | R7: 1.504292729e-05 | S7: 0.01522090963
A8: 2004 | B8: 1 | C8: 1 | D8: 6 | E8: 0.007039661438 | F8: 0.006850587824 | G8: 0.0002532512521 | H8: 0.003150850838 | I8: 4.435483871e-07 | J8: 1.765152427e-05 | K8: 0.01731244643 | M8: 0.006272446361 | N8: 0.006346279914 | O8: 0.0001623729338 | P8: 0.002819403291 | Q8: 4.808541697e-05 | R8: 1.504292729e-05 | S8: 0.01566363084
A9: 2004 | B9: 1 | C9: 1 | D9: 7 | E9: 0.007458553301 | F9: 0.007327758115 | G9: 0.0001603924597 | H9: 0.003279768754 | I9: 4.435483871e-07 | J9: 1.11792987e-05 | K9: 0.01823809548 | M9: 0.006645685438 | N9: 0.006788323182 | O9: 0.0001028361914 | P9: 0.002934759941 | Q9: 4.808541697e-05 | R9: 9.527187285e-06 | S9: 0.01652921736
A10: 2004 | B10: 1 | C10: 1 | D10: 8 | E10: 0.007874567837 | F10: 0.008142015792 | G10: 0 | H10: 0.003651889244 | I10: 4.435483871e-07 | J10: 0 | K10: 0.01966891642 | M10: 0.007016360773 | N10: 0.007542639057 | O10: 0 | P10: 0.003267735949 | Q10: 4.808541697e-05 | R10: 0 | S10: 0.0178748212
A11: 2004 | B11: 1 | C11: 1 | D11: 9 | E11: 0.008303103765 | F11: 0.008612741825 | G11: 0 | H11: 0.003891678275 | I11: 4.435483871e-07 | J11: 0 | K11: 0.02080796741 | M11: 0.00739819286 | N11: 0.007978712463 | O11: 0 | P11: 0.003482300844 | Q11: 4.808541697e-05 | R11: 0 | S11: 0.01890729158
A12: 2004 | B12: 1 | C12: 1 | D12: 10 | E12: 0.008578267368 | F12: 0.009140721317 | G12: 0 | H12: 0.004120719135 | I12: 4.435483871e-07 | J12: 0 | K12: 0.02184015137 | M12: 0.007643367853 | N12: 0.008467824599 | O12: 0 | P12: 0.003687248202 | Q12: 4.808541697e-05 | R12: 0 | S12: 0.01984652607
A13: 2004 | B13: 1 | C13: 1 | D13: 11 | E13: 0.008749538324 | F13: 0.009337123432 | G13: 0 | H13: 0.004181294654 | I13: 4.435483871e-07 | J13: 0 | K13: 0.02226839996 | M13: 0.007795972903 | N13: 0.008649768518 | O13: 0 | P13: 0.003741451599 | Q13: 4.808541697e-05 | R13: 0 | S13: 0.02023527844
A14: 2004 | B14: 1 | C14: 1 | D14: 12 | E14: 0.00864728157 | F14: 0.009724198494 | G14: 0 | H14: 0.004407127216 | I14: 4.435483871e-07 | J14: 0 | K14: 0.02277905083 | M14: 0.007704860566 | N14: 0.009008348943 | O14: 0 | P14: 0.003943528149 | Q14: 4.808541697e-05 | R14: 0 | S14: 0.02070482307
A15: 2004 | B15: 1 | C15: 1 | D15: 13 | E15: 0.008170284534 | F15: 0.009546416987 | G15: 0 | H15: 0.004322827858 | I15: 4.435483871e-07 | J15: 0 | K15: 0.02203997293 | M15: 0.007279848888 | N15: 0.00884365487 | O15: 0 | P15: 0.003868096496 | Q15: 4.808541697e-05 | R15: 0 | S15: 0.02003968567
A16: 2004 | B16: 1 | C16: 1 | D16: 14 | E16: 0.007868183585 | F16: 0.009590624243 | G16: 0 | H16: 0.004341111327 | I16: 4.435483871e-07 | J16: 0 | K16: 0.0218003627 | M16: 0.007010672306 | N16: 0.008884607797 | O16: 0 | P16: 0.003884456672 | Q16: 4.808541697e-05 | R16: 0 | S16: 0.01982782219
A17: 2004 | B17: 1 | C17: 1 | D17: 15 | E17: 0.008029595674 | F17: 0.009150704384 | G17: 0 | H17: 0.0040171661 | I17: 4.435483871e-07 | J17: 0 | K17: 0.02119790971 | M17: 0.007154492954 | N17: 0.00847707276 | O17: 0 | P17: 0.003594588224 | Q17: 4.808541697e-05 | R17: 0 | S17: 0.01927423936
A18: 2004 | B18: 1 | C18: 1 | D18: 16 | E18: 0.007935749666 | F18: 0.009289924962 | G18: 8.863793825e-05 | H18: 0.00417688976 | I18: 4.435483871e-07 | J18: 6.178033493e-06 | K18: 0.02149782391 | M18: 0.007070874722 | N18: 0.008606044577 | O18: 5.683052683e-05 | P18: 0.003737510069 | Q18: 4.808541697e-05 | R18: 5.265024552e-06 | S18: 0.01952461034
A19: 2004 | B19: 1 | C19: 1 | D19: 17 | E19: 0.008519274787 | F19: 0.009946547235 | G19: 0.0002532512521 | H19: 0.004671412926 | I19: 4.435483871e-07 | J19: 1.765152427e-05 | K19: 0.02340858127 | M19: 0.007590804558 | N19: 0.00921432942 | O19: 0.0001623729338 | P19: 0.004180012845 | Q19: 4.808541697e-05 | R19: 1.504292729e-05 | S19: 0.0212106481
A20: 2004 | B20: 1 | C20: 1 | D20: 18 | E20: 0.009721424142 | F20: 0.009663297914 | G20: 0.0002532512521 | H20: 0.00452735948 | I20: 4.435483871e-07 | J20: 1.765152427e-05 | K20: 0.02418342786 | M20: 0.008661938079 | N20: 0.008951931576 | O20: 0.0001623729338 | P20: 0.004051112817 | Q20: 4.808541697e-05 | R20: 1.504292729e-05 | S20: 0.02189048375
A21: 2004 | B21: 1 | C21: 1 | D21: 19 | E21: 0.009610955659 | F21: 0.00936641947 | G21: 0.0002532512521 | H21: 0.004420621278 | I21: 4.435483871e-07 | J21: 1.765152427e-05 | K21: 0.02366934273 | M21: 0.008563508966 | N21: 0.00867690792 | O21: 0.0001623729338 | P21: 0.00395560273 | Q21: 4.808541697e-05 | R21: 1.504292729e-05 | S21: 0.02142152089
A22: 2004 | B22: 1 | C22: 1 | D22: 20 | E22: 0.009324997612 | F22: 0.00917298868 | G22: 0.0002532512521 | H22: 0.004396265629 | I22: 4.435483871e-07 | J22: 1.765152427e-05 | K22: 0.02316559824 | M22: 0.008308715958 | N22: 0.008497716591 | O22: 0.0001623729338 | P22: 0.003933809125 | Q22: 4.808541697e-05 | R22: 1.504292729e-05 | S22: 0.02096574295
A23: 2004 | B23: 1 | C23: 1 | D23: 21 | E23: 0.009157292843 | F23: 0.008861449329 | G23: 0.0002532512521 | H23: 0.004313262143 | I23: 4.435483871e-07 | J23: 1.765152427e-05 | K23: 0.02260335064 | M23: 0.008159288435 | N23: 0.008209111295 | O23: 0.0001623729338 | P23: 0.003859537028 | Q23: 4.808541697e-05 | R23: 1.504292729e-05 | S23: 0.02045343804
A24: 2004 | B24: 1 | C24: 1 | D24: 22 | E24: 0.008608628438 | F24: 0.008595225406 | G24: 0.0002532512521 | H24: 0.004165971105 | I24: 4.435483871e-07 | J24: 1.765152427e-05 | K24: 0.02164117127 | M24: 0.007670420032 | N24: 0.00796248552 | O24: 0.0001623729338 | P24: 0.00372773998 | Q24: 4.808541697e-05 | R24: 1.504292729e-05 | S24: 0.01958614681
A25: 2004 | B25: 1 | C25: 1 | D25: 23 | E25: 0.00788684211 | F25: 0.008231956932 | G25: 0.0002532512521 | H25: 0.003753973039 | I25: 4.435483871e-07 | J25: 1.765152427e-05 | K25: 0.02014411841 | M25: 0.007027297339 | N25: 0.007625959155 | O25: 0.0001623729338 | P25: 0.00335908124 | Q25: 4.808541697e-05 | R25: 1.504292729e-05 | S25: 0.01823783901
A26: 2004 | B26: 1 | C26: 1 | D26: 24 | E26: 0.006818720917 | F26: 0.008199652745 | G26: 0.0002532512521 | H26: 0.003542099173 | I26: 4.435483871e-07 | J26: 1.765152427e-05 | K26: 0.01883181916 | M26: 0.006075584966 | N26: 0.007596033049 | O26: 0.0001623729338 | P26: 0.003169495028 | Q26: 4.808541697e-05 | R26: 1.504292729e-05 | S26: 0.01706661432
A27: 2004 | B27: 1 | C27: 2 | D27: 1 | E27: 0.006415313853 | F27: 0.007751859747 | G27: 0.0002532512521 | H27: 0.002847998304 | I27: 4.435483871e-07 | J27: 1.765152427e-05 | K27: 0.01728651823 | M27: 0.005716143082 | N27: 0.007181204456 | O27: 0.0001623729338 | P27: 0.002548408732 | Q27: 4.808541697e-05 | R27: 1.504292729e-05 | S27: 0.01567125755
A28: 2004 | B28: 1 | C28: 2 | D28: 2 | E28: 0.006021824806 | F28: 0.007534215565 | G28: 0.0002532512521 | H28: 0.002848477054 | I28: 4.435483871e-07 | J28: 1.765152427e-05 | K28: 0.01667586375 | M28: 0.005365538303 | N28: 0.00697958221 | O28: 0.0001623729338 | P28: 0.002548837121 | Q28: 4.808541697e-05 | R28: 1.504292729e-05 | S28: 0.01511945891
A29: 2004 | B29: 1 | C29: 2 | D29: 3 | E29: 0.006139619578 | F29: 0.007299194011 | G29: 0.0002532512521 | H29: 0.002748332534 | I29: 4.435483871e-07 | J29: 1.765152427e-05 | K29: 0.01645849245 | M29: 0.005470495253 | N29: 0.006761861833 | O29: 0.0001623729338 | P29: 0.002459227106 | Q29: 4.808541697e-05 | R29: 1.504292729e-05 | S29: 0.01491708547
A30: 2004 | B30: 1 | C30: 2 | D30: 4 | E30: 0.006235898076 | F30: 0.007140942241 | G30: 0.0002532512521 | H30: 0.002628360583 | I30: 4.435483871e-07 | J30: 1.765152427e-05 | K30: 0.01627654722 | M30: 0.005556280872 | N30: 0.00661525981 | O30: 0.0001623729338 | P30: 0.002351875369 | Q30: 4.808541697e-05 | R30: 1.504292729e-05 | S30: 0.01474891733
A31: 2004 | B31: 1 | C31: 2 | D31: 5 | E31: 0.006386797582 | F31: 0.007178044197 | G31: 0.0002532512521 | H31: 0.00253874364 | I31: 4.435483871e-07 | J31: 1.765152427e-05 | K31: 0.01637493174 | M31: 0.005690734647 | N31: 0.006649630496 | O31: 0.0001623729338 | P31: 0.002271685503 | Q31: 4.808541697e-05 | R31: 1.504292729e-05 | S31: 0.01483755192
A32: 2004 | B32: 1 | C32: 2 | D32: 6 | E32: 0.006630377204 | F32: 0.007510574221 | G32: 0.0002532512521 | H32: 0.002439137086 | I32: 4.435483871e-07 | J32: 1.765152427e-05 | K32: 0.01685143484 | M32: 0.005907767828 | N32: 0.00695768123 | O32: 0.0001623729338 | P32: 0.002182556865 | Q32: 4.808541697e-05 | R32: 1.504292729e-05 | S32: 0.0152735072
A33: 2004 | B33: 1 | C33: 2 | D33: 7 | E33: 0.006807106957 | F33: 0.008467733284 | G33: 0.0001603924597 | H33: 0.002272150815 | I33: 4.435483871e-07 | J33: 1.11792987e-05 | K33: 0.01771900636 | M33: 0.006065236749 | N33: 0.007844378766 | O33: 0.0001028361914 | P33: 0.002033136385 | Q33: 4.808541697e-05 | R33: 9.527187285e-06 | S33: 0.0161032007
A34: 2004 | B34: 1 | C34: 2 | D34: 8 | E34: 0.006800157329 | F34: 0.009974356552 | G34: 0 | H34: 0.002257318099 | I34: 4.435483871e-07 | J34: 0 | K34: 0.01903227553 | M34: 0.006059044524 | N34: 0.009240091547 | O34: 0 | P34: 0.002019863967 | Q34: 4.808541697e-05 | R34: 0 | S34: 0.01736708546
A35: 2004 | B35: 1 | C35: 2 | D35: 9 | E35: 0.006840187128 | F35: 0.01099959664 | G35: 0 | H35: 0.002354620161 | I35: 4.435483871e-07 | J35: 0 | K35: 0.02019484748 | M35: 0.006094711689 | N35: 0.01018985831 | O35: 0 | P35: 0.002106930531 | Q35: 4.808541697e-05 | R35: 0 | S35: 0.01843958594
A36: 2004 | B36: 1 | C36: 2 | D36: 10 | E36: 0.006878027898 | F36: 0.01166906102 | G36: 0 | H36: 0.002664446974 | I36: 4.435483871e-07 | J36: 0 | K36: 0.02121197944 | M36: 0.006128428396 | N36: 0.01081003988 | O36: 0 | P36: 0.002384165723 | Q36: 4.808541697e-05 | R36: 0 | S36: 0.01937071941
A37: 2004 | B37: 1 | C37: 2 | D37: 11 | E37: 0.007351417191 | F37: 0.0116367979 | G37: 0 | H37: 0.002620663118 | I37: 4.435483871e-07 | J37: 0 | K37: 0.02160932176 | M37: 0.00655022552 | N37: 0.01078015182 | O37: 0 | P37: 0.002344987623 | Q37: 4.808541697e-05 | R37: 0 | S37: 0.01972345038
A38: 2004 | B38: 1 | C38: 2 | D38: 12 | E38: 0.007127824302 | F38: 0.0120160881 | G38: 0 | H38: 0.003001790432 | I38: 4.435483871e-07 | J38: 0 | K38: 0.02214614638 | M38: 0.006351000825 | N38: 0.01113152046 | O38: 0 | P38: 0.002686023 | Q38: 4.808541697e-05 | R38: 0 | S38: 0.02021662971
A39: 2004 | B39: 1 | C39: 2 | D39: 13 | E39: 0.006634946928 | F39: 0.01180025563 | G39: 0 | H39: 0.002927290407 | I39: 4.435483871e-07 | J39: 0 | K39: 0.02136293651 | M39: 0.005911839522 | N39: 0.01093157656 | O39: 0 | P39: 0.002619359858 | Q39: 4.808541697e-05 | R39: 0 | S39: 0.01951086136
A40: 2004 | B40: 1 | C40: 2 | D40: 14 | E40: 0.00645214253 | F40: 0.01164393846 | G40: 0 | H40: 0.002934005324 | I40: 4.435483871e-07 | J40: 0 | K40: 0.02103052987 | M40: 0.005748957998 | N40: 0.01078676673 | O40: 0 | P40: 0.002625368413 | Q40: 4.808541697e-05 | R40: 0 | S40: 0.01920917855
A41: 2004 | B41: 1 | C41: 2 | D41: 15 | E41: 0.006596478108 | F41: 0.01105673235 | G41: 0 | H41: 0.002759060431 | I41: 4.435483871e-07 | J41: 0 | K41: 0.02041271443 | M41: 0.005877563213 | N41: 0.01024278795 | O41: 0 | P41: 0.002468826504 | Q41: 4.808541697e-05 | R41: 0 | S41: 0.01863726308
A42: 2004 | B42: 1 | C42: 2 | D42: 16 | E42: 0.006642332384 | F42: 0.01090069734 | G42: 8.863793825e-05 | H42: 0.003131893378 | I42: 4.435483871e-07 | J42: 6.178033493e-06 | K42: 0.02077018262 | M42: 0.005918420077 | N42: 0.0100982395 | O42: 5.683052683e-05 | P42: 0.002802440024 | Q42: 4.808541697e-05 | R42: 5.265024552e-06 | S42: 0.01892928057
A43: 2004 | B43: 1 | C43: 2 | D43: 17 | E43: 0.00724454117 | F43: 0.01143175249 | G43: 0.0002532512521 | H43: 0.003673881669 | I43: 4.435483871e-07 | J43: 1.765152427e-05 | K43: 0.02262152165 | M43: 0.006454997345 | N43: 0.01059020088 | O43: 0.0001623729338 | P43: 0.003287414923 | Q43: 4.808541697e-05 | R43: 1.504292729e-05 | S43: 0.02055811442
A44: 2004 | B44: 1 | C44: 2 | D44: 18 | E44: 0.008562159676 | F44: 0.01104657498 | G44: 0.0002532512521 | H44: 0.003528451755 | I44: 4.435483871e-07 | J44: 1.765152427e-05 | K44: 0.02340853274 | M44: 0.007629015652 | N44: 0.01023337832 | O44: 0.0001623729338 | P44: 0.003157283223 | Q44: 4.808541697e-05 | R44: 1.504292729e-05 | S44: 0.02124517847
A45: 2004 | B45: 1 | C45: 2 | D45: 19 | E45: 0.008527870315 | F45: 0.01064457034 | G45: 0.0002532512521 | H45: 0.003460456367 | I45: 4.435483871e-07 | J45: 1.765152427e-05 | K45: 0.02290424335 | M45: 0.007598463306 | N45: 0.00986096736 | O45: 0.0001623729338 | P45: 0.003096440476 | Q45: 4.808541697e-05 | R45: 1.504292729e-05 | S45: 0.02078137242
A46: 2004 | B46: 1 | C46: 2 | D46: 20 | E46: 0.008266826096 | F46: 0.01056378384 | G46: 0.0002532512521 | H46: 0.003312502286 | I46: 4.435483871e-07 | J46: 1.765152427e-05 | K46: 0.02241445855 | M46: 0.0073658689 | N46: 0.009786127984 | O46: 0.0001623729338 | P46: 0.002964050132 | Q46: 4.808541697e-05 | R46: 1.504292729e-05 | S46: 0.02034154829
A47: 2004 | B47: 1 | C47: 2 | D47: 21 | E47: 0.008156292473 | F47: 0.01020846342 | G47: 0.0002532512521 | H47: 0.003209129752 | I47: 4.435483871e-07 | J47: 1.765152427e-05 | K47: 0.02184523197 | M47: 0.007267381746 | N47: 0.009456964573 | O47: 0.0001623729338 | P47: 0.002871551669 | Q47: 4.808541697e-05 | R47: 1.504292729e-05 | S47: 0.01982139927
A48: 2004 | B48: 1 | C48: 2 | D48: 22 | E48: 0.007681954102 | F48: 0.009743489029 | G48: 0.0002532512521 | H48: 0.003226824851 | I48: 4.435483871e-07 | J48: 1.765152427e-05 | K48: 0.02092361431 | M48: 0.006844738979 | N48: 0.0090262194 | O48: 0.0001623729338 | P48: 0.002887385366 | Q48: 4.808541697e-05 | R48: 1.504292729e-05 | S48: 0.01898384502
A49: 2004 | B49: 1 | C49: 2 | D49: 23 | E49: 0.007371231064 | F49: 0.009004161143 | G49: 0.0002532512521 | H49: 0.002999579701 | I49: 4.435483871e-07 | J49: 1.765152427e-05 | K49: 0.01964631823 | M49: 0.006567879985 | N49: 0.00834131734 | O49: 0.0001623729338 | P49: 0.002684044822 | Q49: 4.808541697e-05 | R49: 1.504292729e-05 | S49: 0.01781874343
A50: 2004 | B50: 1 | C50: 2 | D50: 24 | E50: 0.006554168601 | F50: 0.008501046888 | G50: 0.0002532512521 | H50: 0.002978952394 | I50: 4.435483871e-07 | J50: 1.765152427e-05 | K50: 0.01830551421 | M50: 0.005839864793 | N50: 0.007875239979 | O50: 0.0001623729338 | P50: 0.002665587365 | Q50: 4.808541697e-05 | R50: 1.504292729e-05 | S50: 0.01660619341
A51: 2004 | B51: 1 | C51: 3 | D51: 1 | E51: 0.006373718151 | F51: 0.009308565334 | G51: 0.0002532512521 | H51: 0.003994180527 | I51: 4.435483871e-07 | J51: 1.765152427e-05 | K51: 0.01994781034 | M51: 0.005679080673 | N51: 0.008623312732 | O51: 0.0001623729338 | P51: 0.003574020574 | Q51: 4.808541697e-05 | R51: 1.504292729e-05 | S51: 0.01810191526
A52: 2004 | B52: 1 | C52: 3 | D52: 2 | E52: 0.006039824865 | F52: 0.009024765432 | G52: 0.0002532512521 | H52: 0.003960322547 | I52: 4.435483871e-07 | J52: 1.765152427e-05 | K52: 0.01929625917 | M52: 0.005381576632 | N52: 0.008360404838 | O52: 0.0001623729338 | P52: 0.003543724218 | Q52: 4.808541697e-05 | R52: 1.504292729e-05 | S52: 0.01751120697
A53: 2004 | B53: 1 | C53: 3 | D53: 3 | E53: 0.006058617314 | F53: 0.008760842856 | G53: 0.0002532512521 | H53: 0.003757951994 | I53: 4.435483871e-07 | J53: 1.765152427e-05 | K53: 0.01884875849 | M53: 0.005398320993 | N53: 0.008115910995 | O53: 0.0001623729338 | P53: 0.003362641636 | Q53: 4.808541697e-05 | R53: 1.504292729e-05 | S53: 0.0171023749
A54: 2004 | B54: 1 | C54: 3 | D54: 4 | E54: 0.005953633797 | F54: 0.008506533447 | G54: 0.0002532512521 | H54: 0.00360216064 | I54: 4.435483871e-07 | J54: 1.765152427e-05 | K54: 0.01833367421 | M54: 0.005304779068 | N54: 0.007880322644 | O54: 0.0001623729338 | P54: 0.003223238446 | Q54: 4.808541697e-05 | R54: 1.504292729e-05 | S54: 0.01663384144
A55: 2004 | B55: 1 | C55: 3 | D55: 5 | E55: 0.005957204502 | F55: 0.00837459569 | G55: 0.0002532512521 | H55: 0.00343827345 | I55: 4.435483871e-07 | J55: 1.765152427e-05 | K55: 0.01804141997 | M55: 0.005307960621 | N55: 0.007758097521 | O55: 0.0001623729338 | P55: 0.003076591047 | Q55: 4.808541697e-05 | R55: 1.504292729e-05 | S55: 0.01636815047
A56: 2004 | B56: 1 | C56: 3 | D56: 6 | E56: 0.006057484282 | F56: 0.008736640302 | G56: 0.0002532512521 | H56: 0.003596271234 | I56: 4.435483871e-07 | J56: 1.765152427e-05 | K56: 0.01866174214 | M56: 0.005397311444 | N56: 0.008093490119 | O56: 0.0001623729338 | P56: 0.003217968565 | Q56: 4.808541697e-05 | R56: 1.504292729e-05 | S56: 0.01693427141
A57: 2004 | B57: 1 | C57: 3 | D57: 7 | E57: 0.006672694229 | F57: 0.009225560533 | G57: 0.0001603924597 | H57: 0.003485866377 | I57: 4.435483871e-07 | J57: 1.11792987e-05 | K57: 0.01955613645 | M57: 0.005945472946 | N57: 0.008546418353 | O57: 0.0001028361914 | P57: 0.00311917753 | Q57: 4.808541697e-05 | R57: 9.527187285e-06 | S57: 0.01777151762
A58: 2004 | B58: 1 | C58: 3 | D58: 8 | E58: 0.006939835467 | F58: 0.0100787985 | G58: 0 | H58: 0.003578397807 | I58: 4.435483871e-07 | J58: 0 | K58: 0.02059747532 | M58: 0.006183499888 | N58: 0.009336844973 | O58: 0 | P58: 0.003201975298 | Q58: 4.808541697e-05 | R58: 0 | S58: 0.01877040558
A59: 2004 | B59: 1 | C59: 3 | D59: 9 | E59: 0.007257763787 | F59: 0.01074844997 | G59: 0 | H59: 0.003641256102 | I59: 4.435483871e-07 | J59: 0 | K59: 0.02164791341 | M59: 0.0064667789 | N59: 0.009957199863 | O59: 0 | P59: 0.003258221338 | Q59: 4.808541697e-05 | R59: 0 | S59: 0.01973028552
A60: 2004 | B60: 1 | C60: 3 | D60: 10 | E60: 0.007859392931 | F60: 0.01128053218 | G60: 0 | H60: 0.003916649326 | I60: 4.435483871e-07 | J60: 0 | K60: 0.02305701798 | M60: 0.007002839699 | N60: 0.01045011269 | O60: 0 | P60: 0.003504645115 | Q60: 4.808541697e-05 | R60: 0 | S60: 0.02100568292
A61: 2004 | B61: 1 | C61: 3 | D61: 11 | E61: 0.008419242105 | F61: 0.01119998453 | G61: 0 | H61: 0.003911213578 | I61: 4.435483871e-07 | J61: 0 | K61: 0.02353088376 | M61: 0.007501673904 | N61: 0.01037549458 | O61: 0 | P61: 0.00349978117 | Q61: 4.808541697e-05 | R61: 0 | S61: 0.02142503507
A62: 2004 | B62: 1 | C62: 3 | D62: 12 | E62: 0.008019550889 | F62: 0.01155411947 | G62: 0 | H62: 0.004283148634 | I62: 4.435483871e-07 | J62: 0 | K62: 0.02385726254 | M62: 0.007145542897 | N62: 0.01070355978 | O62: 0 | P62: 0.00383259125 | Q62: 4.808541697e-05 | R62: 0 | S62: 0.02172977934
A63: 2004 | B63: 1 | C63: 3 | D63: 13 | E63: 0.007657593986 | F63: 0.01092066134 | G63: 0 | H63: 0.004052921556 | I63: 4.435483871e-07 | J63: 0 | K63: 0.02263162043 | M63: 0.006823033742 | N63: 0.01011673385 | O63: 0 | P63: 0.003626582456 | Q63: 4.808541697e-05 | R63: 0 | S63: 0.02061443547
A64: 2004 | B64: 1 | C64: 3 | D64: 14 | E64: 0.006892498531 | F64: 0.01094929103 | G64: 0 | H64: 0.004168689628 | I64: 4.435483871e-07 | J64: 0 | K64: 0.02201092274 | M64: 0.006141321952 | N64: 0.01014325595 | O64: 0 | P64: 0.003730172533 | Q64: 4.808541697e-05 | R64: 0 | S64: 0.02006283586
A65: 2004 | B65: 1 | C65: 3 | D65: 15 | E65: 0.006658926963 | F65: 0.01076881673 | G65: 0 | H65: 0.003962419971 | I65: 4.435483871e-07 | J65: 0 | K65: 0.02139060721 | M65: 0.005933206101 | N65: 0.009976067317 | O65: 0 | P65: 0.003545601007 | Q65: 4.808541697e-05 | R65: 0 | S65: 0.01950295984
A66: 2004 | B66: 1 | C66: 3 | D66: 16 | E66: 0.006869435522 | F66: 0.01038850104 | G66: 8.441708405e-05 | H66: 0.003798632839 | I66: 4.435483871e-07 | J66: 5.883841422e-06 | K66: 0.02114731387 | M66: 0.006120772457 | N66: 0.00962374867 | O66: 5.412431127e-05 | P66: 0.003399043139 | Q66: 4.808541697e-05 | R66: 5.014309097e-06 | S66: 0.0192507883
A67: 2004 | B67: 1 | C67: 3 | D67: 17 | E67: 0.007423891163 | F67: 0.01055509782 | G67: 0.0002532512521 | H67: 0.003967316307 | I67: 4.435483871e-07 | J67: 1.765152427e-05 | K67: 0.02221765161 | M67: 0.006614800941 | N67: 0.009778081383 | O67: 0.0001623729338 | P67: 0.003549982283 | Q67: 4.808541697e-05 | R67: 1.504292729e-05 | S67: 0.02016836589
A68: 2004 | B68: 1 | C68: 3 | D68: 18 | E68: 0.008183658443 | F68: 0.01072747689 | G68: 0.0002532512521 | H68: 0.004194759032 | I68: 4.435483871e-07 | J68: 1.765152427e-05 | K68: =SUM(E68:J68) -> 0.02337724069 | M68: =E68*V$5 -> 0.007291765246 | N68: =F68*W$5 -> 0.009937770727 | O68: =G68*X$5 -> 0.0001623729338 | P68: =H68*AB$5 -> 0.003753499618 | Q68: =I68*Z$5 -> 4.808541697e-05 | R68: =J68*AA$5 -> 1.504292729e-05 | S68: =SUM(M68:R68) -> 0.02120853687
A69: 2004 | B69: 1 | C69: 3 | D69: 19 | E69: 0.008108909917 | F69: 0.01018978851 | G69: 0.0002532512521 | H69: 0.003924197065 | I69: 4.435483871e-07 | J69: 1.765152427e-05 | K69: 0.02249424181 | M69: 0.007225163162 | N69: 0.009439664418 | O69: 0.0001623729338 | P69: 0.003511398885 | Q69: 4.808541697e-05 | R69: 1.504292729e-05 | S69: 0.02040172774
A70: 2004 | B70: 1 | C70: 3 | D70: 20 | E70: 0.008137873185 | F70: 0.009688230891 | G70: 0.0002532512521 | H70: 0.003795572979 | I70: 4.435483871e-07 | J70: 1.765152427e-05 | K70: 0.02189302338 | M70: 0.007250969878 | N70: 0.008975029105 | O70: 0.0001623729338 | P70: 0.003396305156 | Q70: 4.808541697e-05 | R70: 1.504292729e-05 | S70: 0.01984780542
A71: 2004 | B71: 1 | C71: 3 | D71: 21 | E71: 0.007646046043 | F71: 0.009660530344 | G71: 0.0002532512521 | H71: 0.003960338682 | I71: 4.435483871e-07 | J71: 1.765152427e-05 | K71: 0.02153826139 | M71: 0.006812744348 | N71: 0.008949367741 | O71: 0.0001623729338 | P71: 0.003543738655 | Q71: 4.808541697e-05 | R71: 1.504292729e-05 | S71: 0.01953135202
A72: 2004 | B72: 1 | C72: 3 | D72: 22 | E72: 0.007515394773 | F72: 0.009265578678 | G72: 0.0002532512521 | H72: 0.003819929116 | I72: 4.435483871e-07 | J72: 1.765152427e-05 | K72: 0.02087224889 | M72: 0.006696332062 | N72: 0.008583490551 | O72: 0.0001623729338 | P72: 0.003418099197 | Q72: 4.808541697e-05 | R72: 1.504292729e-05 | S72: 0.01892342309
A73: 2004 | B73: 1 | C73: 3 | D73: 23 | E73: 0.007379588196 | F73: 0.008775663714 | G73: 0.0002532512521 | H73: 0.003586123282 | I73: 4.435483871e-07 | J73: 1.765152427e-05 | K73: 0.02001272152 | M73: 0.006575326318 | N73: 0.008129640812 | O73: 0.0001623729338 | P73: 0.003208888107 | Q73: 4.808541697e-05 | R73: 1.504292729e-05 | S73: 0.01813935651
A74: 2004 | B74: 1 | C74: 3 | D74: 24 | E74: 0.006015809461 | F74: 0.008769915973 | G74: 0.0002532512521 | H74: 0.003774883873 | I74: 4.435483871e-07 | J74: 1.765152427e-05 | K74: 0.01883195563 | M74: 0.005360178539 | N74: 0.008124316192 | O74: 0.0001623729338 | P74: 0.003377792399 | Q74: 4.808541697e-05 | R74: 1.504292729e-05 | S74: 0.01708778841
A75: 2004 | B75: 1 | C75: 4 | D75: 1 | E75: 0.005151354077 | F75: 0.008210087183 | G75: 0.0002532512521 | H75: 0.003293696081 | I75: 4.435483871e-07 | J75: 1.765152427e-05 | K75: 0.01692648367 | M75: 0.004589935527 | N75: 0.007605699353 | O75: 0.0001623729338 | P75: 0.00294722221 | Q75: 4.808541697e-05 | R75: 1.504292729e-05 | S75: 0.01536835837
A76: 2004 | B76: 1 | C76: 4 | D76: 2 | E76: 0.005040296042 | F76: 0.007927157757 | G76: 0.0002532512521 | H76: 0.003081456175 | I76: 4.435483871e-07 | J76: 1.765152427e-05 | K76: 0.0163202563 | M76: 0.004490981114 | N76: 0.007343597855 | O76: 0.0001623729338 | P76: 0.002757308463 | Q76: 4.808541697e-05 | R76: 1.504292729e-05 | S76: 0.01481738871
A77: 2004 | B77: 1 | C77: 4 | D77: 3 | E77: 0.004811527069 | F77: 0.007846036708 | G77: 0.0002532512521 | H77: 0.003077959234 | I77: 4.435483871e-07 | J77: 1.765152427e-05 | K77: 0.01600686934 | M77: 0.004287144449 | N77: 0.007268448554 | O77: 0.0001623729338 | P77: 0.002754179375 | Q77: 4.808541697e-05 | R77: 1.504292729e-05 | S77: 0.01453527366
A78: 2004 | B78: 1 | C78: 4 | D78: 4 | E78: 0.0049356631 | F78: 0.007733095826 | G78: 0.0002532512521 | H78: 0.002886715507 | I78: 4.435483871e-07 | J78: 1.765152427e-05 | K78: 0.01582682076 | M78: 0.004397751557 | N78: 0.007163821846 | O78: 0.0001623729338 | P78: 0.002583053155 | Q78: 4.808541697e-05 | R78: 1.504292729e-05 | S78: 0.01437012784
A79: 2004 | B79: 1 | C79: 4 | D79: 5 | E79: 0.005095405135 | F79: 0.007658264105 | G79: 0.0002532512521 | H79: 0.002904124558 | I79: 4.435483871e-07 | J79: 1.765152427e-05 | K79: 0.01592914012 | M79: 0.004540084161 | N79: 0.007094498883 | O79: 0.0001623729338 | P79: 0.002598630895 | Q79: 4.808541697e-05 | R79: 1.504292729e-05 | S79: 0.01445871522
A80: 2004 | B80: 1 | C80: 4 | D80: 6 | E80: 0.00519903292 | F80: 0.007744353467 | G80: 0.0002532512521 | H80: 0.002901130051 | I80: 4.435483871e-07 | J80: 1.765152427e-05 | K80: 0.01611586276 | M80: 0.004632418108 | N80: 0.007174250753 | O80: 0.0001623729338 | P80: 0.00259595139 | Q80: 4.808541697e-05 | R80: 1.504292729e-05 | S80: 0.01462812153
A81: 2004 | B81: 1 | C81: 4 | D81: 7 | E81: 0.004487007786 | F81: 0.007259450115 | G81: 0.0001603924597 | H81: 0.002213506956 | I81: 4.435483871e-07 | J81: 1.11792987e-05 | K81: 0.01413198016 | M81: 0.003997992787 | N81: 0.006725043695 | O81: 0.0001028361914 | P81: 0.001980661452 | Q81: 4.808541697e-05 | R81: 9.527187285e-06 | S81: 0.01286414673
A82: 2004 | B82: 1 | C82: 4 | D82: 8 | E82: 0.005063878548 | F82: 0.007461798 | G82: 0 | H82: 0.002124735587 | I82: 4.435483871e-07 | J82: 0 | K82: 0.01465085568 | M82: 0.004511993488 | N82: 0.006912495685 | O82: 0 | P82: 0.001901228212 | Q82: 4.808541697e-05 | R82: 0 | S82: 0.0133738028
A83: 2004 | B83: 1 | C83: 4 | D83: 9 | E83: 0.005599085678 | F83: 0.007676532842 | G83: 0 | H83: 0.00205078342 | I83: 4.435483871e-07 | J83: 0 | K83: 0.01532684549 | M83: 0.004988871254 | N83: 0.007111422762 | O83: 0 | P83: 0.001835055298 | Q83: 4.808541697e-05 | R83: 0 | S83: 0.01398343473
A84: 2004 | B84: 1 | C84: 4 | D84: 10 | E84: 0.005390564228 | F84: 0.007592028319 | G84: 0 | H84: 0.001695849601 | I84: 4.435483871e-07 | J84: 0 | K84: 0.0146788857 | M84: 0.004803075442 | N84: 0.007033139063 | O84: 0 | P84: 0.001517458043 | Q84: 4.808541697e-05 | R84: 0 | S84: 0.01340175796
A85: 2004 | B85: 1 | C85: 4 | D85: 11 | E85: 0.006279293088 | F85: 0.009080252545 | G85: 0 | H85: 0.002844484162 | I85: 4.435483871e-07 | J85: 0 | K85: 0.01820447334 | M85: 0.005594946493 | N85: 0.008411807252 | O85: 0 | P85: 0.002545264254 | Q85: 4.808541697e-05 | R85: 0 | S85: 0.01660010342
A86: 2004 | B86: 1 | C86: 4 | D86: 12 | E86: 0.005413689043 | F86: 0.008268804238 | G86: 0 | H86: 0.002159677152 | I86: 4.435483871e-07 | J86: 0 | K86: 0.01584261398 | M86: 0.004823680007 | N86: 0.007660093936 | O86: 0 | P86: 0.001932494168 | Q86: 4.808541697e-05 | R86: 0 | S86: 0.01446435353
A87: 2004 | B87: 1 | C87: 4 | D87: 13 | E87: 0.005118912606 | F87: 0.008204285457 | G87: 0 | H87: 0.002106442857 | I87: 4.435483871e-07 | J87: 0 | K87: 0.01543008447 | M87: 0.004561029678 | N87: 0.007600324723 | O87: 0 | P87: 0.00188485975 | Q87: 4.808541697e-05 | R87: 0 | S87: 0.01409429957
A88: 2004 | B88: 1 | C88: 4 | D88: 14 | E88: 0.005191510403 | F88: 0.00817828348 | G88: 0 | H88: 0.002121616952 | I88: 4.435483871e-07 | J88: 0 | K88: 0.01549185438 | M88: 0.00462571543 | N88: 0.007576236889 | O88: 0 | P88: 0.001898437635 | Q88: 4.808541697e-05 | R88: 0 | S88: 0.01414847537
A89: 2004 | B89: 1 | C89: 4 | D89: 15 | E89: 0.005038255903 | F89: 0.00811503714 | G89: 0 | H89: 0.002130643772 | I89: 4.435483871e-07 | J89: 0 | K89: 0.01528438036 | M89: 0.004489163318 | N89: 0.007517646445 | O89: 0 | P89: 0.001906514897 | Q89: 4.808541697e-05 | R89: 0 | S89: 0.01396141008
A90: 2004 | B90: 1 | C90: 4 | D90: 16 | E90: 0.005451363401 | F90: 0.008227107987 | G90: 8.019622985e-05 | H90: 0.002334021944 | I90: 4.435483871e-07 | J90: 5.589649351e-06 | K90: 0.01609872276 | M90: 0.004857248438 | N90: 0.007621467166 | O90: 5.14180957e-05 | P90: 0.002088499103 | Q90: 4.808541697e-05 | R90: 4.763593642e-06 | S90: 0.01467148181
A91: 2004 | B91: 1 | C91: 4 | D91: 17 | E91: 0.006336360198 | F91: 0.008768131392 | G91: 0.0002532512521 | H91: 0.002785298513 | I91: 4.435483871e-07 | J91: 1.765152427e-05 | K91: 0.01816113643 | M91: 0.005645794164 | N91: 0.008122662984 | O91: 0.0001623729338 | P91: 0.002492304522 | Q91: 4.808541697e-05 | R91: 1.504292729e-05 | S91: 0.01648626295
A92: 2004 | B92: 1 | C92: 4 | D92: 18 | E92: 0.006827039571 | F92: 0.008448517462 | G92: 0.0002532512521 | H92: 0.002556254584 | I92: 4.435483871e-07 | J92: 1.765152427e-05 | K92: 0.01810315794 | M92: 0.006082997014 | N92: 0.007826577522 | O92: 0.0001623729338 | P92: 0.002287354418 | Q92: 4.808541697e-05 | R92: 1.504292729e-05 | S92: 0.01642243023
A93: 2004 | B93: 1 | C93: 4 | D93: 19 | E93: 0.006935287167 | F93: 0.008346668981 | G93: 0.0002532512521 | H93: 0.00257982273 | I93: 4.435483871e-07 | J93: 1.765152427e-05 | K93: 0.0181331252 | M93: 0.006179447283 | N93: 0.007732226644 | O93: 0.0001623729338 | P93: 0.002308443359 | Q93: 4.808541697e-05 | R93: 1.504292729e-05 | S93: 0.01644561856
A94: 2004 | B94: 1 | C94: 4 | D94: 20 | E94: 0.007028209738 | F94: 0.008062823426 | G94: 0.0002532512521 | H94: 0.002503962215 | I94: 4.435483871e-07 | J94: 1.765152427e-05 | K94: 0.0178663417 | M94: 0.00626224272 | N94: 0.007469276458 | O94: 0.0001623729338 | P94: 0.002240562842 | Q94: 4.808541697e-05 | R94: 1.504292729e-05 | S94: 0.0161975833
A95: 2004 | B95: 1 | C95: 4 | D95: 21 | E95: 0.006775401519 | F95: 0.008057216714 | G95: 0.0002532512521 | H95: 0.00257061265 | I95: 4.435483871e-07 | J95: 1.765152427e-05 | K95: 0.01767457721 | M95: 0.006036986717 | N95: 0.007464082486 | O95: 0.0001623729338 | P95: 0.002300202116 | Q95: 4.808541697e-05 | R95: 1.504292729e-05 | S95: 0.0160267726
A96: 2004 | B96: 1 | C96: 4 | D96: 22 | E96: 0.006864542054 | F96: 0.008498368721 | G96: 0.0002532512521 | H96: 0.002974961964 | I96: 4.435483871e-07 | J96: 1.765152427e-05 | K96: 0.01860921906 | M96: 0.006116412302 | N96: 0.007872758966 | O96: 0.0001623729338 | P96: 0.0026620167 | Q96: 4.808541697e-05 | R96: 1.504292729e-05 | S96: 0.01687668925
A97: 2004 | B97: 1 | C97: 4 | D97: 23 | E97: 0.005581526353 | F97: 0.008279640369 | G97: 0.0002532512521 | H97: 0.00271314732 | I97: 4.435483871e-07 | J97: 1.765152427e-05 | K97: 0.01684566037 | M97: 0.004973225625 | N97: 0.007670132362 | O97: 0.0001623729338 | P97: 0.002427743131 | Q97: 4.808541697e-05 | R97: 1.504292729e-05 | S97: 0.0152966024
A98: 2004 | B98: 1 | C98: 4 | D98: 24 | E98: 0.004662517931 | F98: 0.008339997907 | G98: 0.0002532512521 | H98: 0.002453238355 | I98: 4.435483871e-07 | J98: 1.765152427e-05 | K98: 0.01572710052 | M98: 0.00415437502 | N98: 0.007726046663 | O98: 0.0001623729338 | P98: 0.002195174778 | Q98: 4.808541697e-05 | R98: 1.504292729e-05 | S98: 0.01430109774
A99: 2004 | B99: 1 | C99: 5 | D99: 1 | E99: 0.005573361683 | F99: 0.008745932659 | G99: 0.0002532512521 | H99: 0.002548282568 | I99: 4.435483871e-07 | J99: 1.765152427e-05 | K99: 0.01713892323 | M99: 0.004965950779 | N99: 0.008102098417 | O99: 0.0001623729338 | P99: 0.002280221003 | Q99: 4.808541697e-05 | R99: 1.504292729e-05 | S99: 0.01557377148
A100: 2004 | B100: 1 | C100: 5 | D100: 2 | E100: 0.005474675957 | F100: 0.008789335731 | G100: 0.0002532512521 | H100: 0.002480396949 | I100: 4.435483871e-07 | J100: 1.765152427e-05 | K100: 0.01701575496 | M100: 0.004878020283 | N100: 0.00814230636 | O100: 0.0001623729338 | P100: 0.002219476478 | Q100: 4.808541697e-05 | R100: 1.504292729e-05 | S100: 0.0154653044
A101: 2004 | B101: 1 | C101: 5 | D101: 3 | E101: 0.005588021763 | F101: 0.008983245177 | G101: 0.0002532512521 | H101: 0.002550050973 | I101: 4.435483871e-07 | J101: 1.765152427e-05 | K101: 0.01739266424 | M101: 0.004979013136 | N101: 0.008321941108 | O101: 0.0001623729338 | P101: 0.002281803383 | Q101: 4.808541697e-05 | R101: 1.504292729e-05 | S101: 0.01580825891
A102: 2004 | B102: 1 | C102: 5 | D102: 4 | E102: 0.005552910169 | F102: 0.008822010323 | G102: 0.0002532512521 | H102: 0.002345247212 | I102: 4.435483871e-07 | J102: 1.765152427e-05 | K102: 0.01699151403 | M102: 0.004947728167 | N102: 0.008172575602 | O102: 0.0001623729338 | P102: 0.002098543551 | Q102: 4.808541697e-05 | R102: 1.504292729e-05 | S102: 0.0154443486
A103: 2004 | B103: 1 | C103: 5 | D103: 5 | E103: 0.005857630997 | F103: 0.009019405577 | G103: 0.0002532512521 | H103: 0.002367275706 | I103: 4.435483871e-07 | J103: 1.765152427e-05 | K103: 0.01751565861 | M103: 0.0052192391 | N103: 0.008355439551 | O103: 0.0001623729338 | P103: 0.002118254801 | Q103: 4.808541697e-05 | R103: 1.504292729e-05 | S103: 0.01591843473
A104: 2004 | B104: 1 | C104: 5 | D104: 6 | E104: 0.006019854635 | F104: 0.009344460755 | G104: 0.0002532512521 | H104: 0.002233541718 | I104: 4.435483871e-07 | J104: 1.765152427e-05 | K104: 0.01786920343 | M104: 0.005363782851 | N104: 0.008656565702 | O104: 0.0001623729338 | P104: 0.001998588696 | Q104: 4.808541697e-05 | R104: 1.504292729e-05 | S104: 0.01624443853
A105: 2004 | B105: 1 | C105: 5 | D105: 7 | E105: 0.0069070501 | F105: 0.01054176598 | G105: 0.0001603924597 | H105: 0.002281452509 | I105: 4.435483871e-07 | J105: 1.11792987e-05 | K105: 0.0199022839 | M105: 0.006154287624 | N105: 0.009765730974 | O105: 0.0001028361914 | P105: 0.002041459606 | Q105: 4.808541697e-05 | R105: 9.527187285e-06 | S105: 0.018121927
A106: 2004 | B106: 1 | C106: 5 | D106: 8 | E106: 0.006648922168 | F106: 0.01247357005 | G106: 0 | H106: 0.002724742689 | I106: 4.435483871e-07 | J106: 0 | K106: 0.02184767845 | M106: 0.005924291676 | N106: 0.01155532475 | O106: 0 | P106: 0.002438118749 | Q106: 4.808541697e-05 | R106: 0 | S106: 0.01996582059
A107: 2004 | B107: 1 | C107: 5 | D107: 9 | E107: 0.006989308609 | F107: 0.01411427974 | G107: 0 | H107: 0.003426990682 | I107: 4.435483871e-07 | J107: 0 | K107: 0.02453102258 | M107: 0.006227581217 | N107: 0.01307525315 | O107: 0 | P107: 0.003066495147 | Q107: 4.808541697e-05 | R107: 0 | S107: 0.02241741493
A108: 2004 | B108: 1 | C108: 5 | D108: 10 | E108: 0.00633223258 | F108: 0.0143319388 | G108: 0 | H108: 0.00320394321 | I108: 4.435483871e-07 | J108: 0 | K108: 0.02386855814 | M108: 0.005642116392 | N108: 0.01327688918 | O108: 0 | P108: 0.002866910715 | Q108: 4.808541697e-05 | R108: 0 | S108: 0.0218340017
A109: 2004 | B109: 1 | C109: 5 | D109: 11 | E109: 0.006252618824 | F109: 0.01459476034 | G109: 0 | H109: 0.003358720447 | I109: 4.435483871e-07 | J109: 0 | K109: 0.02420654316 | M109: 0.005571179315 | N109: 0.01352036304 | O109: 0 | P109: 0.003005406466 | Q109: 4.808541697e-05 | R109: 0 | S109: 0.02214503424
A110: 2004 | B110: 1 | C110: 5 | D110: 12 | E110: 0.006334427061 | F110: 0.0146694365 | G110: 0 | H110: 0.003462752974 | I110: 4.435483871e-07 | J110: 0 | K110: 0.02446706009 | M110: 0.005644071709 | N110: 0.01358954189 | O110: 0 | P110: 0.003098495496 | Q110: 4.808541697e-05 | R110: 0 | S110: 0.02238019451
A111: 2004 | B111: 1 | C111: 5 | D111: 13 | E111: 0.005925127837 | F111: 0.01446329707 | G111: 0 | H111: 0.003249097393 | I111: 4.435483871e-07 | J111: 0 | K111: 0.02363796585 | M111: 0.00527937982 | N111: 0.01339857747 | O111: 0 | P111: 0.002907314993 | Q111: 4.808541697e-05 | R111: 0 | S111: 0.0216333577
A112: 2004 | B112: 1 | C112: 5 | D112: 14 | E112: 0.005637441648 | F112: 0.01398258697 | G112: 0 | H112: 0.002885287775 | I112: 4.435483871e-07 | J112: 0 | K112: 0.02250575994 | M112: 0.005023047011 | N112: 0.01295325498 | O112: 0 | P112: 0.00258177561 | Q112: 4.808541697e-05 | R112: 0 | S112: 0.02060616302
A113: 2004 | B113: 1 | C113: 5 | D113: 15 | E113: 0.005609424987 | F113: 0.01398898706 | G113: 0 | H113: 0.002980826633 | I113: 4.435483871e-07 | J113: 0 | K113: 0.02257968223 | M113: 0.004998083737 | N113: 0.01295918392 | O113: 0 | P113: 0.002667264446 | Q113: 4.808541697e-05 | R113: 0 | S113: 0.02067261752
A114: 2004 | B114: 1 | C114: 5 | D114: 16 | E114: 0.00564851045 | F114: 0.01382686351 | G114: 8.019622985e-05 | H114: 0.003053634124 | I114: 4.435483871e-07 | J114: 5.589649351e-06 | K114: 0.02261523751 | M114: 0.005032909484 | N114: 0.01280899514 | O114: 5.14180957e-05 | P114: 0.002732413097 | Q114: 4.808541697e-05 | R114: 4.763593642e-06 | S114: 0.02067858483
A115: 2004 | B115: 1 | C115: 5 | D115: 17 | E115: 0.007263762055 | F115: 0.01424497433 | G115: 0.0002532512521 | H115: 0.003765328109 | I115: 4.435483871e-07 | J115: 1.765152427e-05 | K115: 0.02554541082 | M115: 0.006472123449 | N115: 0.01319632662 | O115: 0.0001623729338 | P115: 0.003369241835 | Q115: 4.808541697e-05 | R115: 1.504292729e-05 | S115: 0.02326319318
A116: 2004 | B116: 1 | C116: 5 | D116: 18 | E116: 0.008819453425 | F116: 0.01360694964 | G116: 0.0002532512521 | H116: 0.003463029606 | I116: 4.435483871e-07 | J116: 1.765152427e-05 | K116: 0.026160779 | M116: 0.00785826833 | N116: 0.0126052703 | O116: 0.0001623729338 | P116: 0.003098743027 | Q116: 4.808541697e-05 | R116: 1.504292729e-05 | S116: 0.02378778293
A117: 2004 | B117: 1 | C117: 5 | D117: 19 | E117: 0.009650712383 | F117: 0.0127919205 | G117: 0.0002532512521 | H117: 0.003120838393 | I117: 4.435483871e-07 | J117: 1.765152427e-05 | K117: 0.02583481761 | M117: 0.008598932817 | N117: 0.01185023975 | O117: 0.0001623729338 | P117: 0.002792547945 | Q117: 4.808541697e-05 | R117: 1.504292729e-05 | S117: 0.02346722179
A118: 2004 | B118: 1 | C118: 5 | D118: 20 | E118: 0.008324877406 | F118: 0.01235553609 | G118: 0.0002532512521 | H118: 0.002919294073 | I118: 4.435483871e-07 | J118: 1.765152427e-05 | K118: 0.02387105389 | M118: 0.007417593509 | N118: 0.01144597989 | O118: 0.0001623729338 | P118: 0.002612204683 | Q118: 4.808541697e-05 | R118: 1.504292729e-05 | S118: 0.02170127936
A119: 2004 | B119: 1 | C119: 5 | D119: 21 | E119: 0.007847973877 | F119: 0.01193092292 | G119: 0.0002532512521 | H119: 0.002796638355 | I119: 4.435483871e-07 | J119: 1.765152427e-05 | K119: 0.02284688147 | M119: 0.006992665147 | N119: 0.01105262474 | O119: 0.0001623729338 | P119: 0.002502451492 | Q119: 4.808541697e-05 | R119: 1.504292729e-05 | S119: 0.02077324266
A120: 2004 | B120: 1 | C120: 5 | D120: 22 | E120: 0.007454630183 | F120: 0.01126528351 | G120: 0.0002532512521 | H120: 0.002726869878 | I120: 4.435483871e-07 | J120: 1.765152427e-05 | K120: 0.0217181299 | M120: 0.00664218988 | N120: 0.01043598656 | O120: 0.0001623729338 | P120: 0.002440022172 | Q120: 4.808541697e-05 | R120: 1.504292729e-05 | S120: 0.01974369989
A121: 2004 | B121: 1 | C121: 5 | D121: 23 | E121: 0.006748563957 | F121: 0.0108322642 | G121: 0.0002532512521 | H121: 0.002773973576 | I121: 4.435483871e-07 | J121: 1.765152427e-05 | K121: 0.02062614806 | M121: 0.006013074038 | N121: 0.01003484409 | O121: 0.0001623729338 | P121: 0.00248217089 | Q121: 4.808541697e-05 | R121: 1.504292729e-05 | S121: 0.0187555903
A122: 2004 | B122: 1 | C122: 5 | D122: 24 | E122: 0.005632201297 | F122: 0.01034056644 | G122: 0.0002532512521 | H122: 0.002495860518 | I122: 4.435483871e-07 | J122: 1.765152427e-05 | K122: 0.01873997458 | M122: 0.005018377778 | N122: 0.009579342791 | O122: 0.0001623729338 | P122: 0.002233313387 | Q122: 4.808541697e-05 | R122: 1.504292729e-05 | S122: 0.01705653523
A123: 2004 | B123: 1 | C123: 6 | D123: 1 | E123: 0.006398676535 | F123: 0.01078478083 | G123: 0.0002532512521 | H123: 0.003102788635 | I123: 4.435483871e-07 | J123: 1.765152427e-05 | K123: 0.02055759232 | M123: 0.005701318976 | N123: 0.009990856216 | O123: 0.0001623729338 | P123: 0.002776396896 | Q123: 4.808541697e-05 | R123: 1.504292729e-05 | S123: 0.01869407337
A124: 2004 | B124: 1 | C124: 6 | D124: 2 | E124: 0.006427358616 | F124: 0.01052215693 | G124: 0.0002532512521 | H124: 0.002999267526 | I124: 4.435483871e-07 | J124: 1.765152427e-05 | K124: 0.0202201294 | M124: 0.00572687515 | N124: 0.009747565449 | O124: 0.0001623729338 | P124: 0.002683765486 | Q124: 4.808541697e-05 | R124: 1.504292729e-05 | S124: 0.01838370736
A125: 2004 | B125: 1 | C125: 6 | D125: 3 | E125: 0.00634534596 | F125: 0.01026334276 | G125: 0.0002532512521 | H125: 0.002947062451 | I125: 4.435483871e-07 | J125: 1.765152427e-05 | K125: 0.01982709749 | M125: 0.005653800616 | N125: 0.009507803954 | O125: 0.0001623729338 | P125: 0.002637052021 | Q125: 4.808541697e-05 | R125: 1.504292729e-05 | S125: 0.01802415787
A126: 2004 | B126: 1 | C126: 6 | D126: 4 | E126: 0.006720646758 | F126: 0.01015414027 | G126: 0.0002532512521 | H126: 0.00293969089 | I126: 4.435483871e-07 | J126: 1.765152427e-05 | K126: 0.02008582425 | M126: 0.005988199386 | N126: 0.00940664044 | O126: 0.0001623729338 | P126: 0.002630455897 | Q126: 4.808541697e-05 | R126: 1.504292729e-05 | S126: 0.018250797
A127: 2004 | B127: 1 | C127: 6 | D127: 5 | E127: 0.006827373728 | F127: 0.01017462432 | G127: 0.0002532512521 | H127: 0.002769780019 | I127: 4.435483871e-07 | J127: 1.765152427e-05 | K127: 0.02004312439 | M127: 0.006083294753 | N127: 0.009425616547 | O127: 0.0001623729338 | P127: 0.002478418465 | Q127: 4.808541697e-05 | R127: 1.504292729e-05 | S127: 0.01821283104
A128: 2004 | B128: 1 | C128: 6 | D128: 6 | E128: 0.007233676732 | F128: 0.01064205099 | G128: 0.0002532512521 | H128: 0.002867473978 | I128: 4.435483871e-07 | J128: 1.765152427e-05 | K128: 0.02101454803 | M128: 0.006445316964 | N128: 0.009858633479 | O128: 0.0001623729338 | P128: 0.002565835701 | Q128: 4.808541697e-05 | R128: 1.504292729e-05 | S128: 0.01909528742
A129: 2004 | B129: 1 | C129: 6 | D129: 7 | E129: 0.00802866555 | F129: 0.0118227592 | G129: 0.0001603924597 | H129: 0.002971758997 | I129: 4.435483871e-07 | J129: 1.11792987e-05 | K129: 0.02299519905 | M129: 0.0071536642 | N129: 0.01095242352 | O129: 0.0001028361914 | P129: 0.002659150663 | Q129: 4.808541697e-05 | R129: 9.527187285e-06 | S129: 0.02092568718
A130: 2004 | B130: 1 | C130: 6 | D130: 8 | E130: 0.008393578097 | F130: 0.0143985761 | G130: 0 | H130: 0.003804544734 | I130: 4.435483871e-07 | J130: 0 | K130: 0.02659714248 | M130: 0.007478806879 | N130: 0.01333862095 | O130: 0 | P130: 0.003404333144 | Q130: 4.808541697e-05 | R130: 0 | S130: 0.02426984639
A131: 2004 | B131: 1 | C131: 6 | D131: 9 | E131: 0.007939785639 | F131: 0.01529013461 | G131: 0 | H131: 0.0038892466 | I131: 4.435483871e-07 | J131: 0 | K131: 0.0271196104 | M131: 0.007074470835 | N131: 0.01416454714 | O131: 0 | P131: 0.003480124965 | Q131: 4.808541697e-05 | R131: 0 | S131: 0.02476722836
A132: 2004 | B132: 1 | C132: 6 | D132: 10 | E132: 0.007256565344 | F132: 0.0153942608 | G132: 0 | H132: 0.00370972565 | I132: 4.435483871e-07 | J132: 0 | K132: =SUM(E132:J132) -> 0.02636099535 | M132: =E132*V$5 -> 0.006465711069 | N132: =F132*W$5 -> 0.01426100805 | O132: =G132*X$5 -> 0 | P132: =H132*AB$5 -> 0.003319488367 | Q132: =I132*Z$5 -> 4.808541697e-05 | R132: =J132*AA$5 -> 0 | S132: =SUM(M132:R132) -> 0.02409429291
A133: 2004 | B133: 1 | C133: 6 | D133: 11 | E133: 0.007069559284 | F133: 0.01561233357 | G133: 0 | H133: 0.003817468782 | I133: 4.435483871e-07 | J133: 0 | K133: 0.02649980519 | M133: 0.0062990858 | N133: 0.01446302734 | O133: 0 | P133: 0.003415897673 | Q133: 4.808541697e-05 | R133: 0 | S133: 0.02422609622
A134: 2004 | B134: 1 | C134: 6 | D134: 12 | E134: 0.00683902788 | F134: 0.01533920403 | G134: 0 | H134: 0.003664383304 | I134: 4.435483871e-07 | J134: 0 | K134: 0.02584305876 | M134: 0.006093678782 | N134: 0.0142100043 | O134: 0 | P134: 0.003278915721 | Q134: 4.808541697e-05 | R134: 0 | S134: 0.02363068422
A135: 2004 | B135: 1 | C135: 6 | D135: 13 | E135: 0.006526348687 | F135: 0.01523730079 | G135: 0 | H135: 0.003593124922 | I135: 4.435483871e-07 | J135: 0 | K135: 0.02535721795 | M135: 0.005815076822 | N135: 0.0141156027 | O135: 0 | P135: 0.003215153224 | Q135: 4.808541697e-05 | R135: 0 | S135: 0.02319391816
A136: 2004 | B136: 1 | C136: 6 | D136: 14 | E136: 0.006280230695 | F136: 0.0150787194 | G136: 0 | H136: 0.003526205335 | I136: 4.435483871e-07 | J136: 0 | K136: 0.02488559898 | M136: 0.005595781915 | N136: 0.01396869532 | O136: 0 | P136: 0.003155273111 | Q136: 4.808541697e-05 | R136: 0 | S136: 0.02276783576
A137: 2004 | B137: 1 | C137: 6 | D137: 15 | E137: 0.006221489754 | F137: 0.01450805562 | G137: 0 | H137: 0.003113024185 | I137: 4.435483871e-07 | J137: 0 | K137: 0.02384301311 | M137: 0.005543442836 | N137: 0.01344004111 | O137: 0 | P137: 0.002785555738 | Q137: 4.808541697e-05 | R137: 0 | S137: 0.0218171251
A138: 2004 | B138: 1 | C138: 6 | D138: 16 | E138: 0.007150588468 | F138: 0.01468283706 | G138: 7.597537564e-05 | H138: 0.003527644151 | I138: 4.435483871e-07 | J138: 5.29545728e-06 | K138: 0.02544278406 | M138: 0.006371284047 | N138: 0.01360195596 | O138: 4.871188014e-05 | P138: 0.003156560573 | Q138: 4.808541697e-05 | R138: 4.512878187e-06 | S138: 0.02323111076
A139: 2004 | B139: 1 | C139: 6 | D139: 17 | E139: 0.008093981241 | F139: 0.01444055554 | G139: 0.0002532512521 | H139: 0.00367976663 | I139: 4.435483871e-07 | J139: 1.765152427e-05 | K139: 0.02648564973 | M139: 0.007211861483 | N139: 0.01337751006 | O139: 0.0001623729338 | P139: 0.003292680828 | Q139: 4.808541697e-05 | R139: 1.504292729e-05 | S139: 0.02410755365
A140: 2004 | B140: 1 | C140: 6 | D140: 18 | E140: 0.009052212799 | F140: 0.01411215378 | G140: 0.0002532512521 | H140: 0.003550883222 | I140: 4.435483871e-07 | J140: 1.765152427e-05 | K140: 0.02698659613 | M140: 0.008065660504 | N140: 0.0130732837 | O140: 0.0001623729338 | P140: 0.003177355056 | Q140: 4.808541697e-05 | R140: 1.504292729e-05 | S140: 0.02454180053
A141: 2004 | B141: 1 | C141: 6 | D141: 19 | E141: 0.009953912277 | F141: 0.01358298204 | G141: 0.0002532512521 | H141: 0.003299021737 | I141: 4.435483871e-07 | J141: 1.765152427e-05 | K141: 0.02710726238 | M141: 0.008869088575 | N141: 0.01258306708 | O141: 0.0001623729338 | P141: 0.002951987644 | Q141: 4.808541697e-05 | R141: 1.504292729e-05 | S141: 0.02462964457
A142: 2004 | B142: 1 | C142: 6 | D142: 20 | E142: 0.009897526895 | F142: 0.01321404516 | G142: 0.0002532512521 | H142: 0.003318614121 | I142: 4.435483871e-07 | J142: 1.765152427e-05 | K142: 0.0267015325 | M142: 0.008818848335 | N142: 0.01224128958 | O142: 0.0001623729338 | P142: 0.002969519045 | Q142: 4.808541697e-05 | R142: 1.504292729e-05 | S142: 0.02425515824
A143: 2004 | B143: 1 | C143: 6 | D143: 21 | E143: 0.009141962097 | F143: 0.01296055102 | G143: 0.0002532512521 | H143: 0.003394624003 | I143: 4.435483871e-07 | J143: 1.765152427e-05 | K143: 0.02576848345 | M143: 0.008145628506 | N143: 0.01200645649 | O143: 0.0001623729338 | P143: 0.003037533217 | Q143: 4.808541697e-05 | R143: 1.504292729e-05 | S143: 0.02341511949
A144: 2004 | B144: 1 | C144: 6 | D144: 22 | E144: 0.008753873324 | F144: 0.012654477 | G144: 0.0002532512521 | H144: 0.003638927065 | I144: 4.435483871e-07 | J144: 1.765152427e-05 | K144: 0.02531862371 | M144: 0.007799835454 | N144: 0.01172291419 | O144: 0.0001623729338 | P144: 0.0032561373 | Q144: 4.808541697e-05 | R144: 1.504292729e-05 | S144: 0.02300438822
A145: 2004 | B145: 1 | C145: 6 | D145: 23 | E145: 0.008222202827 | F145: 0.01216707114 | G145: 0.0002532512521 | H145: 0.003639790605 | I145: 4.435483871e-07 | J145: 1.765152427e-05 | K145: 0.02430041089 | M145: 0.007326108883 | N145: 0.01127138884 | O145: 0.0001623729338 | P145: 0.003256910002 | Q145: 4.808541697e-05 | R145: 1.504292729e-05 | S145: 0.02207990901
A146: 2004 | B146: 1 | C146: 6 | D146: 24 | E146: 0.006978027121 | F146: 0.01128628008 | G146: 0.0002532512521 | H146: 0.003090585487 | I146: 4.435483871e-07 | J146: 1.765152427e-05 | K146: 0.02162623901 | M146: 0.006217529238 | N146: 0.01045543746 | O146: 0.0001623729338 | P146: 0.002765477434 | Q146: 4.808541697e-05 | R146: 1.504292729e-05 | S146: 0.01966394541
A147: 2004 | B147: 1 | C147: 7 | D147: 1 | E147: 0.006700047748 | F147: 0.01088022609 | G147: 0.0002532512521 | H147: 0.00315996736 | I147: 4.435483871e-07 | J147: 1.765152427e-05 | K147: 0.02101158752 | M147: 0.005969845351 | N147: 0.01007927525 | O147: 0.0001623729338 | P147: 0.002827560817 | Q147: 4.808541697e-05 | R147: 1.504292729e-05 | S147: 0.01910218269
A148: 2004 | B148: 1 | C148: 7 | D148: 2 | E148: 0.006875194527 | F148: 0.01084728863 | G148: 0.0002532512521 | H148: 0.003174556489 | I148: 4.435483871e-07 | J148: 1.765152427e-05 | K148: 0.02116838598 | M148: 0.006125903819 | N148: 0.01004876249 | O148: 0.0001623729338 | P148: 0.002840615272 | Q148: 4.808541697e-05 | R148: 1.504292729e-05 | S148: 0.01924078286
A149: 2004 | B149: 1 | C149: 7 | D149: 3 | E149: 0.006592217528 | F149: 0.01036666211 | G149: 0.0002532512521 | H149: 0.002929620259 | I149: 4.435483871e-07 | J149: 1.765152427e-05 | K149: 0.02015984623 | M149: 0.005873766971 | N149: 0.009603517427 | O149: 0.0001623729338 | P149: 0.002621444627 | Q149: 4.808541697e-05 | R149: 1.504292729e-05 | S149: 0.0183242303
A150: 2004 | B150: 1 | C150: 7 | D150: 4 | E150: 0.006999491717 | F150: 0.01030446508 | G150: 0.0002532512521 | H150: 0.002921836523 | I150: 4.435483871e-07 | J150: 1.765152427e-05 | K150: 0.02049713964 | M150: 0.006236654522 | N150: 0.009545899042 | O150: 0.0001623729338 | P150: 0.002614479685 | Q150: 4.808541697e-05 | R150: 1.504292729e-05 | S150: 0.01862253453
A151: 2004 | B151: 1 | C151: 7 | D151: 5 | E151: 0.007208349279 | F151: 0.01045507379 | G151: 0.0002532512521 | H151: 0.00282307907 | I151: 4.435483871e-07 | J151: 1.765152427e-05 | K151: 0.02075784846 | M151: 0.006422749815 | N151: 0.009685420651 | O151: 0.0001623729338 | P151: 0.002526110828 | Q151: 4.808541697e-05 | R151: 1.504292729e-05 | S151: 0.01885978257
A152: 2004 | B152: 1 | C152: 7 | D152: 6 | E152: 0.007799535616 | F152: 0.0108946784 | G152: 0.0002532512521 | H152: 0.003082545401 | I152: 4.435483871e-07 | J152: 1.765152427e-05 | K152: 0.02204810575 | M152: 0.006949505913 | N152: 0.01009266365 | O152: 0.0001623729338 | P152: 0.002758283109 | Q152: 4.808541697e-05 | R152: 1.504292729e-05 | S152: 0.02002595395
A153: 2004 | B153: 1 | C153: 7 | D153: 7 | E153: 0.0086729287 | F153: 0.01194816488 | G153: 0.0001561716055 | H153: 0.00321932867 | I153: 4.435483871e-07 | J153: 1.088510663e-05 | K153: 0.02400792251 | M153: 0.007727712552 | N153: 0.01106859743 | O153: 0.0001001299758 | P153: 0.002880677731 | Q153: 4.808541697e-05 | R153: 9.27647183e-06 | S153: 0.02183447958
A154: 2004 | B154: 1 | C154: 7 | D154: 8 | E154: 0.008216712846 | F154: 0.01363908127 | G154: 0 | H154: 0.003356736634 | I154: 4.435483871e-07 | J154: 0 | K154: 0.0252129743 | M154: 0.007321217226 | N154: 0.01263503655 | O154: 0 | P154: 0.003003631335 | Q154: 4.808541697e-05 | R154: 0 | S154: 0.02300797053
A155: 2004 | B155: 1 | C155: 7 | D155: 9 | E155: 0.008030099562 | F155: 0.01486072919 | G155: 0 | H155: 0.003713671387 | I155: 4.435483871e-07 | J155: 0 | K155: 0.02660494369 | M155: 0.007154941926 | N155: 0.01376675252 | O155: 0 | P155: 0.00332301904 | Q155: 4.808541697e-05 | R155: 0 | S155: 0.0242927989
A156: 2004 | B156: 1 | C156: 7 | D156: 10 | E156: 0.007584948593 | F156: 0.01534279012 | G156: 0 | H156: 0.003781436693 | I156: 4.435483871e-07 | J156: 0 | K156: 0.02670961895 | M156: 0.006758305582 | N156: 0.0142133264 | O156: 0 | P156: 0.003383655908 | Q156: 4.808541697e-05 | R156: 0 | S156: 0.0244033733
A157: 2004 | B157: 1 | C157: 7 | D157: 11 | E157: 0.007218844309 | F157: 0.01535321946 | G157: 0 | H157: 0.003746156389 | I157: 4.435483871e-07 | J157: 0 | K157: 0.0263186637 | M157: 0.006432101048 | N157: 0.01422298798 | O157: 0 | P157: 0.003352086846 | Q157: 4.808541697e-05 | R157: 0 | S157: 0.02405526129
A158: 2004 | B158: 1 | C158: 7 | D158: 12 | E158: 0.006911059349 | F158: 0.0150243455 | G158: 0 | H158: 0.003530840696 | I158: 4.435483871e-07 | J158: 0 | K158: 0.02546668909 | M158: 0.006157859926 | N158: 0.01391832417 | O158: 0 | P158: 0.003159420864 | Q158: 4.808541697e-05 | R158: 0 | S158: 0.02328369037
A159: 2004 | B159: 1 | C159: 7 | D159: 13 | E159: 0.00675068779 | F159: 0.01516388675 | G159: 0 | H159: 0.003620170475 | I159: 4.435483871e-07 | J159: 0 | K159: 0.02553518856 | M159: 0.006014966406 | N159: 0.01404759305 | O159: 0 | P159: 0.003239353772 | Q159: 4.808541697e-05 | R159: 0 | S159: 0.02334999864
A160: 2004 | B160: 1 | C160: 7 | D160: 14 | E160: 0.006389874549 | F160: 0.01494450579 | G160: 0 | H160: 0.003456079834 | I160: 4.435483871e-07 | J160: 0 | K160: 0.02479090372 | M160: 0.005693476271 | N160: 0.01384436188 | O160: 0 | P160: 0.003092524323 | Q160: 4.808541697e-05 | R160: 0 | S160: 0.02267844789
A161: 2004 | B161: 1 | C161: 7 | D161: 15 | E161: 0.006586133782 | F161: 0.01454445061 | G161: 0 | H161: 0.003258746097 | I161: 4.435483871e-07 | J161: 0 | K161: 0.02438977403 | M161: 0.005868346259 | N161: 0.01347375687 | O161: 0 | P161: 0.00291594872 | Q161: 4.808541697e-05 | R161: 0 | S161: 0.02230613726
A162: 2004 | B162: 1 | C162: 7 | D162: 16 | E162: 0.007394457562 | F162: 0.01461085021 | G162: 7.597537564e-05 | H162: 0.003536993084 | I162: 4.435483871e-07 | J162: 5.29545728e-06 | K162: 0.02562401524 | M162: 0.00658857515 | N162: 0.01353526845 | O162: 4.871188014e-05 | P162: 0.003164926063 | Q162: 4.808541697e-05 | R162: 4.512878187e-06 | S162: 0.02339007984
A163: 2004 | B163: 1 | C163: 7 | D163: 17 | E163: 0.00850696283 | F163: 0.01483374023 | G163: 0.0002532512521 | H163: 0.003800669266 | I163: 4.435483871e-07 | J163: 1.765152427e-05 | K163: 0.02741271865 | M163: 0.007579834415 | N163: 0.01374175035 | O163: 0.0001623729338 | P163: 0.003400865349 | Q163: 4.808541697e-05 | R163: 1.504292729e-05 | S163: 0.0249479514
A164: 2004 | B164: 1 | C164: 7 | D164: 18 | E164: 0.009673606036 | F164: 0.01445452034 | G164: 0.0002532512521 | H164: 0.003794073333 | I164: 4.435483871e-07 | J164: 1.765152427e-05 | K164: 0.02819354603 | M164: 0.008619331414 | N164: 0.01339044684 | O164: 0.0001623729338 | P164: 0.003394963262 | Q164: 4.808541697e-05 | R164: 1.504292729e-05 | S164: 0.0256302428
A165: 2004 | B165: 1 | C165: 7 | D165: 19 | E165: 0.0104264821 | F165: 0.01365578777 | G165: 0.0002532512521 | H165: 0.003337462355 | I165: 4.435483871e-07 | J165: 1.765152427e-05 | K165: 0.02769107855 | M165: 0.009290155541 | N165: 0.01265051319 | O165: 0.0001623729338 | P165: 0.002986384576 | Q165: 4.808541697e-05 | R165: 1.504292729e-05 | S165: 0.02515255458
A166: 2004 | B166: 1 | C166: 7 | D166: 20 | E166: 0.01009765963 | F166: 0.0131325354 | G166: 0.0002532512521 | H166: 0.003130724861 | I166: 4.435483871e-07 | J166: 1.765152427e-05 | K166: 0.02663226621 | M166: 0.008997169668 | N166: 0.01216578019 | O166: 0.0001623729338 | P166: 0.002801394426 | Q166: 4.808541697e-05 | R166: 1.504292729e-05 | S166: 0.02418984556
A167: 2004 | B167: 1 | C167: 7 | D167: 21 | E167: 0.009373200813 | F167: 0.01293406853 | G167: 0.0002532512521 | H167: 0.003285809764 | I167: 4.435483871e-07 | J167: 1.765152427e-05 | K167: 0.02586442543 | M167: 0.00835166575 | N167: 0.01198192351 | O167: 0.0001623729338 | P167: 0.002940165478 | Q167: 4.808541697e-05 | R167: 1.504292729e-05 | S167: 0.02349925602
A168: 2004 | B168: 1 | C168: 7 | D168: 22 | E168: 0.008707523262 | F168: 0.01247802273 | G168: 0.0002532512521 | H168: 0.003303642542 | I168: 4.435483871e-07 | J168: 1.765152427e-05 | K168: 0.02476053486 | M168: 0.007758536838 | N168: 0.01155944965 | O168: 0.0001623729338 | P168: 0.002956122372 | Q168: 4.808541697e-05 | R168: 1.504292729e-05 | S168: 0.02249961013
A169: 2004 | B169: 1 | C169: 7 | D169: 23 | E169: 0.008087208367 | F169: 0.01187457843 | G169: 0.0002532512521 | H169: 0.003242808011 | I169: 4.435483871e-07 | J169: 1.765152427e-05 | K169: 0.02347594113 | M169: 0.007205826748 | N169: 0.01100042806 | O169: 0.0001623729338 | P169: 0.002901687209 | Q169: 4.808541697e-05 | R169: 1.504292729e-05 | S169: 0.0213334433
A170: 2004 | B170: 1 | C170: 7 | D170: 24 | E170: 0.007343339779 | F170: 0.01158073028 | G170: 0.0002532512521 | H170: 0.003178356305 | I170: 4.435483871e-07 | J170: 1.765152427e-05 | K170: 0.02237377269 | M170: 0.006543028422 | N170: 0.01072821163 | O170: 0.0001623729338 | P170: 0.002844015374 | Q170: 4.808541697e-05 | R170: 1.504292729e-05 | S170: 0.0203407567
A171: 2004 | B171: 1 | C171: 8 | D171: 1 | E171: 0.007038031601 | F171: 0.01106558554 | G171: 0.0002532512521 | H171: 0.003042092833 | I171: 4.435483871e-07 | J171: 1.765152427e-05 | K171: 0.0214170563 | M171: 0.00627099415 | N171: 0.01025098941 | O171: 0.0001623729338 | P171: 0.00272208587 | Q171: 4.808541697e-05 | R171: 1.504292729e-05 | S171: 0.01946957071
A172: 2004 | B172: 1 | C172: 8 | D172: 2 | E172: 0.007213774191 | F172: 0.01071137463 | G172: 0.0002532512521 | H172: 0.003021682805 | I172: 4.435483871e-07 | J172: 1.765152427e-05 | K172: 0.02121817795 | M172: 0.006427583494 | N172: 0.00992285384 | O172: 0.0001623729338 | P172: 0.002703822834 | Q172: 4.808541697e-05 | R172: 1.504292729e-05 | S172: 0.01927976145
A173: 2004 | B173: 1 | C173: 8 | D173: 3 | E173: 0.007159613077 | F173: 0.01038159808 | G173: 0.0002532512521 | H173: 0.002979392743 | I173: 4.435483871e-07 | J173: 1.765152427e-05 | K173: 0.02079195023 | M173: 0.006379325111 | N173: 0.009617353877 | O173: 0.0001623729338 | P173: 0.002665981392 | Q173: 4.808541697e-05 | R173: 1.504292729e-05 | S173: 0.01888816166
A174: 2004 | B174: 1 | C174: 8 | D174: 4 | E174: 0.007555551177 | F174: 0.01035411362 | G174: 0.0002532512521 | H174: 0.002902589038 | I174: 4.435483871e-07 | J174: 1.765152427e-05 | K174: 0.02108360016 | M174: 0.006732112034 | N174: 0.009591892697 | O174: 0.0001623729338 | P174: 0.002597256901 | Q174: 4.808541697e-05 | R174: 1.504292729e-05 | S174: 0.01914676291
A175: 2004 | B175: 1 | C175: 8 | D175: 5 | E175: 0.007794813293 | F175: 0.01043285815 | G175: 0.0002532512521 | H175: 0.00278568685 | I175: 4.435483871e-07 | J175: 1.765152427e-05 | K175: 0.02128470462 | M175: 0.006945298251 | N175: 0.009664840421 | O175: 0.0001623729338 | P175: 0.002492652009 | Q175: 4.808541697e-05 | R175: 1.504292729e-05 | S175: 0.01932829196
A176: 2004 | B176: 1 | C176: 8 | D176: 6 | E176: 0.008062408584 | F176: 0.01074626678 | G176: 0.0002532512521 | H176: 0.002723277104 | I176: 4.435483871e-07 | J176: 1.765152427e-05 | K176: 0.02180329879 | M176: 0.007183729761 | N176: 0.009955177387 | O176: 0.0001623729338 | P176: 0.002436807333 | Q176: 4.808541697e-05 | R176: 1.504292729e-05 | S176: 0.01980121576
A177: 2004 | B177: 1 | C177: 8 | D177: 7 | E177: 0.009110701284 | F177: 0.01200553129 | G177: 0.0001561716055 | H177: 0.002944540882 | I177: 4.435483871e-07 | J177: 1.088510663e-05 | K177: 0.02422827372 | M177: 0.008117774642 | N177: 0.0111217408 | O177: 0.0001001299758 | P177: 0.002634795704 | Q177: 4.808541697e-05 | R177: 9.27647183e-06 | S177: 0.02203180301
A178: 2004 | B178: 1 | C178: 8 | D178: 8 | E178: 0.008823180539 | F178: 0.01417804582 | G178: 0 | H178: 0.003374198374 | I178: 4.435483871e-07 | J178: 0 | K178: 0.02637586828 | M178: 0.007861589246 | N178: 0.01313432507 | O178: 0 | P178: 0.003019256223 | Q178: 4.808541697e-05 | R178: 0 | S178: 0.02406325595
A179: 2004 | B179: 1 | C179: 8 | D179: 9 | E179: 0.008268192673 | F179: 0.01522371234 | G179: 0 | H179: 0.003432887275 | I179: 4.435483871e-07 | J179: 0 | K179: 0.02692523584 | M179: 0.007367086542 | N179: 0.01410301456 | O179: 0 | P179: 0.00307177146 | Q179: 4.808541697e-05 | R179: 0 | S179: 0.02458995798
A180: 2004 | B180: 1 | C180: 8 | D180: 10 | E180: 0.007843363602 | F180: 0.01567224189 | G180: 0 | H180: 0.003568828025 | I180: 4.435483871e-07 | J180: 0 | K180: 0.02708487707 | M180: 0.00698855732 | N180: 0.01451852549 | O180: 0 | P180: 0.003193412191 | Q180: 4.808541697e-05 | R180: 0 | S180: 0.02474858041
A181: 2004 | B181: 1 | C181: 8 | D181: 11 | E181: 0.007545452124 | F181: 0.01579499263 | G181: 0 | H181: 0.003643283377 | I181: 4.435483871e-07 | J181: 0 | K181: 0.02698417168 | M181: 0.006723113623 | N181: 0.0146322399 | O181: 0 | P181: 0.003260035359 | Q181: 4.808541697e-05 | R181: 0 | S181: 0.0246634743
A182: 2004 | B182: 1 | C182: 8 | D182: 12 | E182: 0.007284151625 | F182: 0.01540896325 | G182: 0 | H182: 0.00349016834 | I182: 4.435483871e-07 | J182: 0 | K182: 0.02618372676 | M182: 0.006490290868 | N182: 0.01427462817 | O182: 0 | P182: 0.003123026956 | Q182: 4.808541697e-05 | R182: 0 | S182: 0.02393603141
A183: 2004 | B183: 1 | C183: 8 | D183: 13 | E183: 0.007260587726 | F183: 0.01572542162 | G183: 0 | H183: 0.003743095207 | I183: 4.435483871e-07 | J183: 0 | K183: 0.0267295481 | M183: 0.006469295073 | N183: 0.01456779038 | O183: 0 | P183: 0.00334934768 | Q183: 4.808541697e-05 | R183: 0 | S183: 0.02443451855
A184: 2004 | B184: 1 | C184: 8 | D184: 14 | E184: 0.006891822727 | F184: 0.01543591825 | G184: 0 | H184: 0.003590379656 | I184: 4.435483871e-07 | J184: 0 | K184: 0.02591856419 | M184: 0.0061407198 | N184: 0.01429959888 | O184: 0 | P184: 0.00321269674 | Q184: 4.808541697e-05 | R184: 0 | S184: 0.02370110084
A185: 2004 | B185: 1 | C185: 8 | D185: 15 | E185: 0.006901062719 | F185: 0.01479196785 | G185: 0 | H185: 0.003176638153 | I185: 4.435483871e-07 | J185: 0 | K185: 0.02487011227 | M185: 0.006148952775 | N185: 0.01370305306 | O185: 0 | P185: 0.00284247796 | Q185: 4.808541697e-05 | R185: 0 | S185: 0.02274256921
A186: 2004 | B186: 1 | C186: 8 | D186: 16 | E186: 0.007737704772 | F186: 0.01483020201 | G186: 7.175452144e-05 | H186: 0.003435157373 | I186: 4.435483871e-07 | J186: 5.001265209e-06 | K186: 0.0260802635 | M186: 0.006894413682 | N186: 0.01373847261 | O186: 4.600566458e-05 | P186: 0.00307380276 | Q186: 4.808541697e-05 | R186: 4.262162733e-06 | S186: 0.02380504229
A187: 2004 | B187: 1 | C187: 8 | D187: 17 | E187: 0.008983492405 | F187: 0.01478109751 | G187: 0.0002532512521 | H187: 0.003733946691 | I187: 4.435483871e-07 | J187: 1.765152427e-05 | K187: 0.02776988294 | M187: 0.008004429579 | N187: 0.01369298295 | O187: 0.0001623729338 | P187: 0.003341161524 | Q187: 4.808541697e-05 | R187: 1.504292729e-05 | S187: 0.02526407533
A188: 2004 | B188: 1 | C188: 8 | D188: 18 | E188: 0.01045205441 | F188: 0.01464570499 | G188: 0.0002532512521 | H188: 0.00386950989 | I188: 4.435483871e-07 | J188: 1.765152427e-05 | K188: 0.02923861562 | M188: 0.00931294086 | N188: 0.01356755738 | O188: 0.0001623729338 | P188: 0.003462464419 | Q188: 4.808541697e-05 | R188: 1.504292729e-05 | S188: 0.02656846394
A189: 2004 | B189: 1 | C189: 8 | D189: 19 | E189: 0.01103323022 | F189: 0.01345970325 | G189: 0.0002532512521 | H189: 0.003125040062 | I189: 4.435483871e-07 | J189: 1.765152427e-05 | K189: 0.02788931986 | M189: 0.009830777422 | N189: 0.01246886349 | O189: 0.0001623729338 | P189: 0.002796307628 | Q189: 4.808541697e-05 | R189: 1.504292729e-05 | S189: 0.02532144982
A190: 2004 | B190: 1 | C190: 8 | D190: 20 | E190: 0.01095568597 | F190: 0.01335472655 | G190: 0.0002532512521 | H190: 0.003205748638 | I190: 4.435483871e-07 | J190: 1.765152427e-05 | K190: 0.02778750748 | M190: 0.009761684305 | N190: 0.01237161467 | O190: 0.0001623729338 | P190: 0.002868526224 | Q190: 4.808541697e-05 | R190: 1.504292729e-05 | S190: 0.02522732648
A191: 2004 | B191: 1 | C191: 8 | D191: 21 | E191: 0.00993385411 | F191: 0.01307748573 | G191: 0.0002532512521 | H191: 0.003180662849 | I191: 4.435483871e-07 | J191: 1.765152427e-05 | K191: 0.02646334901 | M191: 0.00885121644 | N191: 0.01211478301 | O191: 0.0001623729338 | P191: 0.002846079286 | Q191: 4.808541697e-05 | R191: 1.504292729e-05 | S191: 0.02403758002
A192: 2004 | B192: 1 | C192: 8 | D192: 22 | E192: 0.009163706383 | F192: 0.01268493327 | G192: 0.0002532512521 | H192: 0.003163459596 | I192: 4.435483871e-07 | J192: 1.765152427e-05 | K192: 0.02528344558 | M192: 0.008165002999 | N192: 0.01175112842 | O192: 0.0001623729338 | P192: 0.002830685695 | Q192: 4.808541697e-05 | R192: 1.504292729e-05 | S192: 0.02297231839
A193: 2004 | B193: 1 | C193: 8 | D193: 23 | E193: 0.008678582361 | F193: 0.01214503706 | G193: 0.0002532512521 | H193: 0.003269057745 | I193: 4.435483871e-07 | J193: 1.765152427e-05 | K193: 0.02436402349 | M193: 0.007732750051 | N193: 0.01125097681 | O193: 0.0001623729338 | P193: 0.002925175655 | Q193: 4.808541697e-05 | R193: 1.504292729e-05 | S193: 0.02213440379
A194: 2004 | B194: 1 | C194: 8 | D194: 24 | E194: 0.007881553872 | F194: 0.01186031888 | G194: 0.0002532512521 | H194: 0.003190959022 | I194: 4.435483871e-07 | J194: 1.765152427e-05 | K194: 0.02320417809 | M194: 0.007022585437 | N194: 0.01098721823 | O194: 0.0001623729338 | P194: 0.002855292373 | Q194: 4.808541697e-05 | R194: 1.504292729e-05 | S194: 0.02109059732
A195: 2004 | B195: 1 | C195: 9 | D195: 1 | E195: 0.00680365783 | F195: 0.01043258535 | G195: 0.0002532512521 | H195: 0.002595582983 | I195: 4.435483871e-07 | J195: 1.765152427e-05 | K195: 0.02010317249 | M195: 0.006062163524 | N195: 0.009664587703 | O195: 0.0001623729338 | P195: 0.002322545744 | Q195: 4.808541697e-05 | R195: 1.504292729e-05 | S195: 0.01827479825
A196: 2004 | B196: 1 | C196: 9 | D196: 2 | E196: 0.006824638321 | F196: 0.00999170199 | G196: 0.0002532512521 | H196: 0.002582172333 | I196: 4.435483871e-07 | J196: 1.765152427e-05 | K196: =SUM(E196:J196) -> 0.01966985897 | M196: =E196*V$5 -> 0.006080857464 | N196: =F196*W$5 -> 0.009256160096 | O196: =G196*X$5 -> 0.0001623729338 | P196: =H196*AB$5 -> 0.002310545801 | Q196: =I196*Z$5 -> 4.808541697e-05 | R196: =J196*AA$5 -> 1.504292729e-05 | S196: =SUM(M196:R196) -> 0.01787306464
A197: 2004 | B197: 1 | C197: 9 | D197: 3 | E197: 0.006891797325 | F197: 0.009981496028 | G197: 0.0002532512521 | H197: 0.002545649457 | I197: 4.435483871e-07 | J197: 1.765152427e-05 | K197: 0.01969028914 | M197: 0.006140697167 | N197: 0.009246705448 | O197: 0.0001623729338 | P197: 0.002277864876 | Q197: 4.808541697e-05 | R197: 1.504292729e-05 | S197: 0.01789076877
A198: 2004 | B198: 1 | C198: 9 | D198: 4 | E198: 0.007079166764 | F198: 0.009676216454 | G198: 0.0002532512521 | H198: 0.002425304223 | I198: 4.435483871e-07 | J198: 1.765152427e-05 | K198: 0.01945203377 | M198: 0.006307646212 | N198: 0.008963899114 | O198: 0.0001623729338 | P198: 0.002170179123 | Q198: 4.808541697e-05 | R198: 1.504292729e-05 | S198: 0.01766722573
A199: 2004 | B199: 1 | C199: 9 | D199: 5 | E199: 0.008011261567 | F199: 0.009958457067 | G199: 0.0002532512521 | H199: 0.002637292989 | I199: 4.435483871e-07 | J199: 1.765152427e-05 | K199: 0.02087835795 | M199: 0.007138156984 | N199: 0.009225362506 | O199: 0.0001623729338 | P199: 0.002359868148 | Q199: 4.808541697e-05 | R199: 1.504292729e-05 | S199: 0.01894888892
A200: 2004 | B200: 1 | C200: 9 | D200: 6 | E200: 0.008123308052 | F200: 0.01014620159 | G200: 0.0002532512521 | H200: 0.002381262788 | I200: 4.435483871e-07 | J200: 1.765152427e-05 | K200: 0.02092211875 | M200: 0.007237992121 | N200: 0.009399286163 | O200: 0.0001623729338 | P200: 0.00213077054 | Q200: 4.808541697e-05 | R200: 1.504292729e-05 | S200: 0.0189935501
... 4296 more rows

Sheet 2006 Input to CA model (hidden)
A2: Feed into OEB Cost Allocation Model (version 50) sheet "I6 Customer Data", row 27
D3: 1 | E3: 2 | F3: 3 | G3: 4 | H3: 5 | I3: 6 | J3: 7 | K3: 8 | L3: 9 | M3: 10 | N3: 11 | O3: 12 | P3: 13 | Q3: 14 | R3: 15 | S3: 16 | T3: 17 | U3: 18 | V3: 19 | W3: 20
B4: ID | C4: Total | D4: Residential | E4: GS>50kW | F4: Street Lighting | G4: Sentinel Lighting | H4: USL | I4: GS<50kW
A6: kWh - 30 year weather normalized amount | C6: =SUM(D6:I6) -> 468300043.1 | D6: 239658158.5 | E6: 146047497.3 | F6: 5353155.35 | G6: 7299.44 | H6: 534100.97 | I6: 76699831.46 | J6: 0 | K6: 0 | L6: 0 | M6: 0 | N6: 0
A9: Feed into OEB Cost Allocation Model sheet (version 50) "I8 Demand Data", row 40, 45, 50, 55, 61 and 67
D10: 1 | E10: 2 | F10: 3 | G10: 4 | H10: 5 | I10: 6 | J10: 7 | K10: 8 | L10: 9 | M10: 10 | N10: 11 | O10: 12 | P10: 13 | Q10: 14 | R10: 15 | S10: 16 | T10: 17 | U10: 18 | V10: 19 | W10: 20
A11: Customer Classes | C11: Total | D11: Residential | E11: GS>50kW | F11: Street Lighting | G11: Sentinel Lighting | H11: USL | I11: GS<50kW
A13: CO-INCIDENT PEAK (kW)
A15: 1 CP
A16: Total Sytem CP | B16: DCP1 | C16: =SUM(D16:I16) -> 0
A18: 4 CP
A19: Total Sytem CP | B19: DCP4 | C19: =SUM(D19:I19) -> 0
A21: 12 CP
A22: Total Sytem CP | B22: DCP12 | C22: =SUM(D22:I22) -> 0
A24: NON CO_INCIDENT PEAK (kW)
A26: 1 NCP
A27: Classification NCP from Load Data Provider | B27: DNCP1 | C27: =SUM(D27:I27) -> 0
A29: 4 NCP
A30: Classification NCP from Load Data Provider | B30: DNCP4 | C30: =SUM(D30:I30) -> 0
A32: 12 NCP
A33: Classification NCP from Load Data Provider | B33: DNCP12 | C33: =SUM(D33:I33) -> 0

Sheet Revised Inputs to CA model
A2: Feed into OEB Cost Allocation Model (version 50) sheet "I6 Customer Data", row 27
B4: ID | C4: Total | D4: ='Hourly load shapes by class'!E2 -> Residential | E4: ='Hourly load shapes by class'!F2 -> GS 50 to 5000kW | F4: ='Hourly load shapes by class'!G2 -> Street Lighting | G4: ='Hourly load shapes by class'!H2 -> GS<50kW | H4: ='Hourly load shapes by class'!I2 -> USL | I4: ='Hourly load shapes by class'!J2 -> Sentinel Lighting
A6: kWh - 30 year weather normalized amount | C6: =SUM(D6:H6) -> 148469385.5 | D6: ='Hourly load shapes by class'!V4 -> 48228552.81 | E6: ='Hourly load shapes by class'!W4 -> 81021488.76 | F6: ='Hourly load shapes by class'!X4 -> 646504.9827 | G6: ='Hourly load shapes by class'!Y4 -> 18143532.32 | H6: ='Hourly load shapes by class'!Z4 -> 429306.6028 | I6: ='Hourly load shapes by class'!AA4 -> 84028.69205
A9: Feed into OEB Cost Allocation Model sheet (version 50) "I8 Demand Data", row 40, 45, 50, 55, 61 and 67 | K9: 2015 Demand Data
A11: Customer Classes | C11: Total | D11: ='Hourly load shapes by class'!E2 -> Residential | E11: ='Hourly load shapes by class'!F2 -> GS 50 to 5000kW | F11: ='Hourly load shapes by class'!G2 -> Street Lighting | G11: ='Hourly load shapes by class'!H2 -> GS<50kW | H11: ='Hourly load shapes by class'!I2 -> USL | I11: ='Hourly load shapes by class'!J2 -> Sentinel Lighting | K11: =D11 -> Residential | L11: =E11 -> GS 50 to 5000kW | M11: Street Lighting | N11: GS<50kW | O11: USL | P11: Sentinel Lighting
A13: CO-INCIDENT PEAK (kW)
A15: 1 CP
A16: Total Sytem CP | B16: DCP1 | C16: =SUM(D16:H16) -> 31227.20507 | D16: ='Hourly load shapes by class'!E8802*1000000 -> 11600.79809 | E16: ='Hourly load shapes by class'!F8802*1000000 -> 15014.52281 | F16: ='Hourly load shapes by class'!G8802*1000000 -> 253.2512521 | G16: ='Hourly load shapes by class'!H8802*1000000 -> 4358.189373 | H16: ='Hourly load shapes by class'!I8802*1000000 -> 0.4435483871 | I16: ='Hourly load shapes by class'!J8802*1000000 -> 17.65152427 | K16: ='Hourly load shapes by class'!M8802*1000000 -> 10336.4891 | L16: ='Hourly load shapes by class'!N8802*1000000 -> 13909.22458 | M16: ='Hourly load shapes by class'!O8802*1000000 -> 162.3729338 | N16: ='Hourly load shapes by class'!P8802*1000000 -> 3899.738226 | O16: ='Hourly load shapes by class'!Q8802*1000000 -> 48.08541697 | P16: ='Hourly load shapes by class'!R8802*1000000 -> 15.04292729
A18: 4 CP
A19: Total Sytem CP | B19: DCP4 | C19: =SUM(D19:H19) -> 120738.2672 | D19: =SUM('Hourly load shapes by class'!E8815:E8818)*1000000 -> 44487.15998 | E19: =SUM('Hourly load shapes by class'!F8815:F8818)*1000000 -> 57964.36055 | F19: =SUM('Hourly load shapes by class'!G8815:G8818)*1000000 -> 988.159843 | G19: =SUM('Hourly load shapes by class'!H8815:H8818)*1000000 -> 17296.76726 | H19: =SUM('Hourly load shapes by class'!I8815:I8818)*1000000 -> 1.819568039 | I19: =SUM('Hourly load shapes by class'!J8815:J8818)*1000000 -> 76.96582247 | K19: =SUM('Hourly load shapes by class'!M8815:M8818)*1000000 -> 39638.74217 | L19: =SUM('Hourly load shapes by class'!N8815:N8818)*1000000 -> 53697.29818 | M19: =SUM('Hourly load shapes by class'!O8815:O8818)*1000000 -> 633.5621696 | N19: =SUM('Hourly load shapes by class'!P8815:P8818)*1000000 -> 15477.2679 | O19: =SUM('Hourly load shapes by class'!Q8815:Q8818)*1000000 -> 197.2607508 | P19: =SUM('Hourly load shapes by class'!R8815:R8818)*1000000 -> 65.59157463
A21: 12 CP
A22: Total Sytem CP | B22: DCP12 | C22: =SUM(D22:H22) -> 316541.5754 | D22: =SUM('Hourly load shapes by class'!E8802:E8813)*1000000 -> 109461.4757 | E22: =SUM('Hourly load shapes by class'!F8802:F8813)*1000000 -> 160082.0948 | F22: =SUM('Hourly load shapes by class'!G8802:G8813)*1000000 -> 1441.895739 | G22: =SUM('Hourly load shapes by class'!H8802:H8813)*1000000 -> 45550.69686 | H22: =SUM('Hourly load shapes by class'!I8802:I8813)*1000000 -> 5.412309974 | I22: =SUM('Hourly load shapes by class'!J8802:J8813)*1000000 -> 118.6259984 | K22: =SUM('Hourly load shapes by class'!M8802:M8813)*1000000 -> 93691.94048 | L22: =SUM('Hourly load shapes by class'!N8802:N8813)*1000000 -> 152800.4797 | M22: =SUM('Hourly load shapes by class'!O8802:O8813)*1000000 -> 773.7088125 | N22: =SUM('Hourly load shapes by class'!P8802:P8813)*1000000 -> 40486.60893 | O22: =SUM('Hourly load shapes by class'!Q8802:Q8813)*1000000 -> 586.7526283 | P22: =SUM('Hourly load shapes by class'!R8802:R8813)*1000000 -> 82.03723393
A24: NON CO_INCIDENT PEAK (kW)
A26: 1 NCP
A27: Classification NCP from Load Data Provider | B27: DNCP1 | C27: =SUM(D27:H27) -> 34692.6521 | D27: ='Hourly load shapes by class'!E8788*1000000 -> 11935.10137 | E27: ='Hourly load shapes by class'!F8788*1000000 -> 16859.82207 | F27: ='Hourly load shapes by class'!G8788*1000000 -> 253.2512521 | G27: ='Hourly load shapes by class'!H8788*1000000 -> 5644.033863 | H27: ='Hourly load shapes by class'!I8788*1000000 -> 0.4435483871 | I27: ='Hourly load shapes by class'!J8788*1000000 -> 17.65152427 | K27: ='Hourly load shapes by class'!M8788*1000000 -> 10634.35846 | L27: ='Hourly load shapes by class'!N8788*1000000 -> 15618.68162 | M27: ='Hourly load shapes by class'!O8788*1000000 -> 162.3729338 | N27: ='Hourly load shapes by class'!P8788*1000000 -> 5050.320838 | O27: ='Hourly load shapes by class'!Q8788*1000000 -> 48.08541697 | P27: ='Hourly load shapes by class'!R8788*1000000 -> 15.04292729
A29: 4 NCP
A30: Classification NCP from Load Data Provider | B30: DNCP4 | C30: =SUM(D30:H30) -> 135592.195 | D30: =(LARGE('Hourly load shapes by class'!E8788:E8799,1)+LARGE('Hourly load shapes by class'!E8788:E8799,2)+LARGE('Hourly load shapes by class'!E8788:E8799,3)+LARGE('Hourly load shapes by class'!E8788:E8799,4))*1000000 -> 49201.57245 | E30: =(LARGE('Hourly load shapes by class'!F8788:F8799,1)+LARGE('Hourly load shapes by class'!F8788:F8799,2)+LARGE('Hourly load shapes by class'!F8788:F8799,3)+LARGE('Hourly load shapes by class'!F8788:F8799,4))*1000000 -> 64283.37373 | F30: =(LARGE('Hourly load shapes by class'!G8788:G8799,1)+LARGE('Hourly load shapes by class'!G8788:G8799,2)+LARGE('Hourly load shapes by class'!G8788:G8799,3)+LARGE('Hourly load shapes by class'!G8788:G8799,4))*1000000 -> 1004.165979 | G30: =(LARGE('Hourly load shapes by class'!H8788:H8799,1)+LARGE('Hourly load shapes by class'!H8788:H8799,2)+LARGE('Hourly load shapes by class'!H8788:H8799,3)+LARGE('Hourly load shapes by class'!H8788:H8799,4))*1000000 -> 21101.23366 | H30: =(LARGE('Hourly load shapes by class'!I8788:I8799,1)+LARGE('Hourly load shapes by class'!I8788:I8799,2)+LARGE('Hourly load shapes by class'!I8788:I8799,3)+LARGE('Hourly load shapes by class'!I8788:I8799,4))*1000000 -> 1.849137931 | I30: =(LARGE('Hourly load shapes by class'!J8788:J8799,1)+LARGE('Hourly load shapes by class'!J8788:J8799,2)+LARGE('Hourly load shapes by class'!J8788:J8799,3)+LARGE('Hourly load shapes by class'!J8788:J8799,4))*1000000 -> 115.3659805 | K30: =(LARGE('Hourly load shapes by class'!M8788:M8799,1)+LARGE('Hourly load shapes by class'!M8788:M8799,2)+LARGE('Hourly load shapes by class'!M8788:M8799,3)+LARGE('Hourly load shapes by class'!M8788:M8799,4))*1000000 -> 43839.35602 | L30: =(LARGE('Hourly load shapes by class'!N8788:N8799,1)+LARGE('Hourly load shapes by class'!N8788:N8799,2)+LARGE('Hourly load shapes by class'!N8788:N8799,3)+LARGE('Hourly load shapes by class'!N8788:N8799,4))*1000000 -> 59551.13546 | M30: =(LARGE('Hourly load shapes by class'!O8788:O8799,1)+LARGE('Hourly load shapes by class'!O8788:O8799,2)+LARGE('Hourly load shapes by class'!O8788:O8799,3)+LARGE('Hourly load shapes by class'!O8788:O8799,4))*1000000 -> 643.8245602 | N30: =(LARGE('Hourly load shapes by class'!P8788:P8799,1)+LARGE('Hourly load shapes by class'!P8788:P8799,2)+LARGE('Hourly load shapes by class'!P8788:P8799,3)+LARGE('Hourly load shapes by class'!P8788:P8799,4))*1000000 -> 18881.53095 | O30: =(LARGE('Hourly load shapes by class'!Q8788:Q8799,1)+LARGE('Hourly load shapes by class'!Q8788:Q8799,2)+LARGE('Hourly load shapes by class'!Q8788:Q8799,3)+LARGE('Hourly load shapes by class'!Q8788:Q8799,4))*1000000 -> 200.4664453 | P30: =(LARGE('Hourly load shapes by class'!R8788:R8799,1)+LARGE('Hourly load shapes by class'!R8788:R8799,2)+LARGE('Hourly load shapes by class'!R8788:R8799,3)+LARGE('Hourly load shapes by class'!R8788:R8799,4))*1000000 -> 98.31683826
A32: 12 NCP
A33: Classification NCP from Load Data Provider | B33: DNCP12 | C33: =SUM(D33:H33) -> 350175.1953 | D33: =SUM('Hourly load shapes by class'!E8788:E8799)*1000000 -> 121154.5209 | E33: =SUM('Hourly load shapes by class'!F8788:F8799)*1000000 -> 175254.8381 | F33: =SUM('Hourly load shapes by class'!G8788:G8799)*1000000 -> 2779.520076 | G33: =SUM('Hourly load shapes by class'!H8788:H8799)*1000000 -> 50980.90385 | H33: =SUM('Hourly load shapes by class'!I8788:I8799)*1000000 -> 5.412309974 | I33: =SUM('Hourly load shapes by class'!J8788:J8799)*1000000 -> 283.5543463 | K33: =SUM('Hourly load shapes by class'!M8788:M8799)*1000000 -> 107950.5372 | L33: =SUM('Hourly load shapes by class'!N8788:N8799)*1000000 -> 162353.4049 | M33: =SUM('Hourly load shapes by class'!O8788:O8799)*1000000 -> 1782.099103 | N33: =SUM('Hourly load shapes by class'!P8788:P8799)*1000000 -> 45618.06809 | O33: =SUM('Hourly load shapes by class'!Q8788:Q8799)*1000000 -> 586.7526283 | P33: =SUM('Hourly load shapes by class'!R8788:R8799)*1000000 -> 241.649806
